{"text_format":"1","workbook":"xlsx","n_sheets":10,"sheets":["連絡担当者情報","企業情報","商品情報_1_JP","商品情報_2_JP","商品情報_3_JP","Company profile","Product_1_EN","Product_2_EN","Product_3_EN","データ(保護有り 削除不可）"],"not_rendered":{"charts":0,"images":7,"macros":1,"external_links":0,"defined_names":50,"comments":5,"pivot_tables":0},"unopened":[],"bounds":{"document_bytes":16777216,"sheet_cells":100000,"rows_first":2000,"rows_last":500,"rows_between":2000,"halvings":0,"cell_chars":16384,"cell_head_chars":4096},"cells_cut":0,"cells_raw":0,"read":"whole","date_system":"1900"}

{"sheet":"連絡担当者情報","index":0,"n_rows":12,"n_cols":40,"rows_kept":12,"cut":false,"hidden":false,"merged":[[0,0,0,38],[1,0,1,14],[1,15,1,38],[2,0,5,10],[2,11,2,38],[3,11,3,38],[4,11,4,23],[4,24,4,38],[5,11,5,23],[5,24,5,38],[8,0,8,10],[8,11,8,38],[11,0,11,10],[11,11,11,38],[6,0,6,10],[6,11,6,38],[7,11,7,38],[7,0,7,10],[10,0,10,10],[10,11,10,38],[9,0,9,10],[9,11,9,38]]}
["「FOOD HOKKAIDO 2024」 エントリーシート【担当者情報】\n\n\n※(必須)欄は必ず記入いただくようお願いします。また、フォーマットを変更(シートを追加する等)されないようお願いします。",null,null,null,null,null,null,null,null,null,null,null,null,null,null,null,null,null,null,null,null,null,null,null,null,null,null,null,null,null,null,null,null,null,null,null,null,null,null,"ver1.2018"]
["【事務局記入欄】企業No."]
["貴社・団体名(正式名称)\n（必須）",null,null,null,null,null,null,null,null,null,null,"日本語"]
[]
[null,null,null,null,null,null,null,null,null,null,null,"(フリガナ)　",null,null,null,null,null,null,null,null,null,null,null,null,"英語（必須）"]
[]
["担当者役職（必須）"]
["担当者名（必須）"]
["メールアドレス（必須）"]
["同行者の人数"]
["同行者の氏名・役職"]
["商談会当日の緊急連絡先（必須）"]

{"sheet":"企業情報","index":1,"n_rows":88,"n_cols":46,"rows_kept":88,"cut":false,"hidden":false,"merged":[[35,10,35,22],[35,0,35,7],[35,25,35,38],[33,17,33,38],[39,0,39,38],[33,2,33,12],[27,0,27,38],[25,0,25,8],[25,27,25,30],[56,23,56,38],[55,19,55,38],[55,0,55,18],[52,12,52,38],[48,12,48,38],[28,0,29,38],[54,0,54,18],[49,0,52,11],[47,0,47,38],[31,0,31,38],[30,0,30,38],[33,13,33,16],[45,0,45,38],[44,0,44,38],[36,0,36,38],[42,6,42,38],[43,0,43,38],[37,0,37,38],[38,0,38,38],[49,12,49,38],[48,0,48,11],[46,0,46,38],[32,0,32,38],[41,0,41,38],[53,0,53,11],[53,12,53,38],[51,12,51,38],[50,12,50,38],[42,0,42,5],[35,8,35,9],[18,8,18,15],[12,7,12,18],[9,15,9,24],[9,11,9,14],[12,19,12,24],[12,25,12,38],[13,7,13,38],[22,0,22,7],[17,0,17,38],[18,0,18,7],[22,24,22,30],[22,16,22,23],[25,18,25,26],[25,9,25,17],[26,0,26,38],[35,23,35,24],[40,0,40,38],[33,0,33,1],[16,0,16,38],[14,24,14,28],[20,0,20,7],[21,0,21,7],[22,31,22,38],[23,6,23,38],[13,0,13,6],[20,16,20,23],[18,16,18,23],[21,31,21,38],[19,0,19,38],[21,8,21,15],[22,8,22,15],[20,24,20,30],[20,8,20,15],[14,34,14,37],[18,24,18,31],[14,30,15,33],[15,37,15,38],[15,24,15,27],[15,34,15,36],[20,31,20,38],[23,0,23,5],[77,1,79,36],[86,1,86,36],[0,0,0,38],[3,11,3,38],[21,24,21,30],[21,16,21,23],[18,32,18,38],[4,11,4,23],[5,24,5,38],[8,17,8,19],[4,24,4,38],[1,0,1,14],[1,15,1,38],[7,11,7,38],[2,0,5,10],[5,11,5,23],[8,20,8,26],[7,0,11,10],[9,25,9,28],[10,11,10,38],[2,11,2,38],[24,0,24,38],[25,31,25,38],[12,0,12,6],[6,0,6,10],[6,11,6,38],[14,0,15,4],[14,9,15,9],[14,5,15,8],[14,10,15,13],[14,19,15,19],[14,14,15,18],[14,20,15,23],[15,28,15,29],[11,11,11,38],[8,27,8,29],[8,30,8,38],[8,12,8,16],[9,29,9,38]]}
["「FOOD HOKKAIDO 2024」 エントリーシート【企業情報】\n【注意事項】\n※海外バイヤーとの商談のため、英語で入力していただく箇所もございます。\n　翻訳会社の紹介が必要な場合はお問い合わせください。\n\n※(必須)欄は必ず記入いただくようお願いします。また、フォーマットを変更(シートを追加する等)されないようお願いします。",null,null,null,null,null,null,null,null,null,null,null,null,null,null,null,null,null,null,null,null,null,null,null,null,null,null,null,null,null,null,null,null,null,null,null,null,null,null,"ver1.2018"]
["【事務局記入欄】企業No."]
["貴社・団体名(正式名称)\n（必須）",null,null,null,null,null,null,null,null,null,null,"日本語"]
[null,null,null,null,null,null,null,null,null,null,null,{"$f":"連絡担当者情報!L4","v":0}]
[null,null,null,null,null,null,null,null,null,null,null,"(フリガナ)　",null,null,null,null,null,null,null,null,null,null,null,null,"英語（必須）"]
[null,null,null,null,null,null,null,null,null,null,null,{"$f":"連絡担当者情報!L6","v":0},null,null,null,null,null,null,null,null,null,null,null,null,{"$f":"連絡担当者情報!Y6","v":0}]
["貴社・団体の代表者　役職・氏名"]
["ご住所（必須）",null,null,null,null,null,null,null,null,null,null,"日本語"]
[null,null,null,null,null,null,null,null,null,null,null,"〒",null,null,null,null,null,"都道府県\n(例：東京都）",null,null,null,null,null,null,null,null,null,"市区町村\n（例：港区）"]
[null,null,null,null,null,null,null,null,null,null,null,"町名番地\n（例：赤坂1丁目12-32）",null,null,null,null,null,null,null,null,null,null,null,null,null,"ビル名等\n（例：アーク森ビル）",null,null,null,null,null,null,null,null,null,null,null,null,null,null,{"$f":"M9&U9&AE9&P10&AD10","v":""}]
[null,null,null,null,null,null,null,null,null,null,null,"英語（必須）(例：ARK MORI BUILDING 1F 12-32 Akasaka 1-Chome,Minato-Ku, Tokyo 107-6006 JAPAN)"]
[]
["ＴＥＬ",null,null,null,null,null,null,null,null,null,null,null,null,null,null,null,null,null,null,"ＦＡＸ"]
["ホームページ（ＵＲＬ）"]
["創業年（西暦）",null,null,null,null,null,null,null,null,"年","資本金",null,null,null,null,null,null,null,null,"円","年間売上高",null,null,null,null,null,null,null,null,"円","従業員数",null,null,null,null,null,null,null,"人"]
[null,null,null,null,null,null,null,null,null,null,null,null,null,null,null,null,null,null,null,null,null,null,null,null,null,null,null,null,"年度",null,null,null,null,null,null,null,null,"年度"]
[]
["業種〔複数回答可〕",null,null,null,null,null,null,null,null,null,null,null,null,null,null,null,null,null,null,null,null,null,null,null,null,null,null,null,null,null,null,null,null,null,null,null,null,null,null,null,false,false,false,false,false]
["　　　　　"]
["取扱商品種類（「その他の加工品」及び「その他」の場合は、［］内に具体的な商品名を日本語と英語を併記してお書きください）（必須）〔複数回答可〕",null,null,null,null,null,null,null,null,null,null,null,null,null,null,null,null,null,null,null,null,null,null,null,null,null,null,null,null,null,null,null,null,null,null,null,null,null,null,null,false,false,false,false,false]
[null,null,null,null,null,null,null,null,null,null,null,null,null,null,null,null,null,null,null,null,null,null,null,null,null,null,null,null,null,null,null,null,null,null,null,null,null,null,null,null,false,false,false,false,false]
[null,null,null,null,null,null,null,null,null,null,null,null,null,null,null,null,null,null,null,null,null,null,null,null,null,null,null,null,null,null,null,null,null,null,null,null,null,null,null,null,false,false,false,false,false]
[null,null,null,null,null,null,null,null,null,null,null,null,null,null,null,null,null,null,null,null,null,null,null,null,null,null,null,null,null,null,null,null,null,null,null,null,null,null,null,null,false]
[]
["商談会参加の目的（必須）〔複数回答可〕",null,null,null,null,null,null,null,null,null,null,null,null,null,null,null,null,null,null,null,null,null,null,null,null,null,null,null,null,null,null,null,null,null,null,null,null,null,null,null,false,false,false,false]
[]
["自社ＰＲ（企業姿勢、経営理念、等　200字以内）※201字以上は入力できません。（必須）"]
["日本語"]
[]
[]
["英語"]
[]
["取得済み認証等（ISO、HACCP、GAP、ハラール等）(「その他」の場合、下欄に具体的にお書きください）〔複数回答可〕",null,null,null,null,null,null,null,null,null,null,null,null,null,null,null,null,null,null,null,null,null,null,null,null,null,null,null,null,null,null,null,null,null,null,null,null,null,null,null,false,false,false,false,false]
["ISO",null,null,null,null,null,null,null,null,null,null,null,null,"HACCP",null,null,null,null,null,null,null,null,null,null,null,null,null,null,null,null,null,null,null,null,null,null,null,null,null,null,false,false,false,false,false,false]
[null,null,null,null,null,null,null,null,null,null,null,null,null,null,null,null,null,null,null,null,null,null,null,null,null,null,null,null,null,null,null,null,null,null,null,null,null,null,null,null,{"$f":"K36","v":0},{"$f":"Z36","v":0}]
["「その他」の場合",null,null,null,null,null,null,null,"日本語",null,null,null,null,null,null,null,null,null,null,null,null,null,null,"英語"]
["原料調達・製造・取得認証等における取り組みでのアピールポイント"]
["日本語"]
[]
["英語"]
[]
["これまでの海外輸出経験について",null,null,null,null,null,null,null,null,null,null,null,null,null,null,null,null,null,null,null,null,null,null,null,null,null,null,null,null,null,null,null,null,null,null,null,null,null,null,null,false,false,false]
["1.輸出実績（必須）\n〔複数回答可〕"]
["2.1年以内の輸出実績国\n※「1.輸出実績」について「a.自社による直接輸出実績あり（1年以内）」あるいは「ｂ.輸出パートナー（国内商社等）を通じた間接輸出実績あり（1年以内）」を選択した場合。"]
["日本語"]
[]
["英語",null,null,null,null,null,null,null,null,null,null,null,null,null,null,null,null,null,null,null,null,null,null,null,null,null,null,null,null,null,null,null,null,null,null,null,null,null,null,null,1,2,3,4,5]
[null,null,null,null,null,null,null,null,null,null,null,null,null,null,null,null,null,null,null,null,null,null,null,null,null,null,null,null,null,null,null,null,null,null,null,null,null,null,null,null,2]
["3.輸出パートナー（国内商社等）の有無"]
["4.輸出パートナー名",null,null,null,null,null,null,null,null,null,null,null,"日本語"]
[]
[null,null,null,null,null,null,null,null,null,null,null,null,"英語"]
[null,null,null,null,null,null,null,null,null,null,null,null,null,null,null,null,null,null,null,null,null,null,null,null,null,null,null,null,null,null,null,null,null,null,null,null,null,null,null,null,2]
["5.輸出パートナーの本商談への同席（予定）",null,null,null,null,null,null,null,null,null,null,null,"　"]
["6-1.輸出体制　（必須）",null,null,null,null,null,null,null,null,null,null,null,null,null,null,null,null,null,null,"  対応可能言語　（「その他」の場合は、□内に具体的な言語をご入力ください）",null,null,null,null,null,null,null,null,null,null,null,null,null,null,null,null,null,null,null,null,false,false,false]
[null,null,null,null,null,null,null,null,null,null,null,null,null,null,null,null,null,null,null,null,null,null,null,null,null,null,null,null,null,null,null,null,null,null,null,null,null,null,null,null,1]
[]
["６-2.販促活動への対応(販促活動についてバイヤーから協力要請があった場合）"]
[]
[]
[null,null,null,null,null,null,null,null,null,null,null,null,null,null,null,null,null,null,null,null,null,null,null,null,null,null,null,null,null,null,null,null,null,null,null,null,null,null,null,null,1]
["※本エントリーシートの企業情報・商品情報は、事前調整のため商談相手に開示します。"]
["◇アンケート◇"]
["■輸出状況に関する質問"]
["（１）輸出状況をご選択ください（複数選択可）"]
["「新規輸出1万者支援プログラム」登録について"]
["輸出に対するあらゆる質問に対応し、国内取引での輸出から海外バイヤーとの商談まで貴社のビジネスチャンスをサポートします。"]
["詳しくは以下のURLを参照ください。　※選択肢の①～⑤のいずれかを選択した場合、「新規輸出1万者プログラム」の対象となります。"]
[null,"https://www.jetro.go.jp/ichiman-export.html"]
[]
[]
[]
[]
[]
[]
[]
["（２）その他を選択した場合、その詳細をご入力ください。"]
[]
[]
[]
[]
["■輸出促進団体等への情報共有について"]
["（１）貴社は、輸出促進団体等（改正輸出促進法に基づく認定団体または認定が見込まれている全国団体）に加入されていますか。"]
[]
[]
["（２）はいを選択した場合、当該団体名をご入力ください。    "]
[]
["（３）加入されている場合、品目団体から求めがあれば、本事業に参加された旨共有してもよろしいでしょうか"]

{"sheet":"商品情報_1_JP","index":2,"n_rows":105,"n_cols":46,"rows_kept":105,"cut":false,"hidden":false,"merged":[[56,0,56,7],[56,8,56,9],[56,10,56,22],[56,23,56,24],[56,25,56,38],[74,26,74,31],[75,26,75,31],[74,33,74,37],[75,33,75,37],[75,9,75,14],[66,0,66,38],[59,0,59,38],[55,16,55,23],[55,24,55,31],[55,32,55,38],[54,0,54,7],[54,8,54,15],[54,16,54,23],[54,24,54,31],[54,32,54,38],[55,0,55,7],[7,27,9,38],[32,27,32,38],[33,27,33,38],[34,27,34,38],[35,27,35,38],[10,0,35,25],[53,0,53,38],[85,0,85,38],[70,26,70,38],[70,0,70,12],[70,13,70,25],[74,0,74,23],[81,0,81,38],[82,0,83,38],[71,0,71,12],[78,0,78,38],[75,15,75,17],[77,0,77,38],[75,20,75,22],[72,0,72,5],[72,6,72,38],[71,13,71,18],[71,19,71,25],[55,8,55,15],[26,27,26,38],[29,27,29,36],[79,0,80,38],[60,0,60,8],[60,9,60,18],[60,19,60,28],[63,0,63,38],[61,9,61,15],[61,16,61,21],[61,22,61,27],[64,0,64,22],[64,23,64,38],[61,28,61,32],[67,0,67,7],[67,8,67,15],[67,16,67,23],[67,24,67,31],[67,32,67,38],[61,0,61,8],[61,33,61,38],[65,23,65,38],[69,0,69,38],[75,0,75,8],[43,0,44,38],[21,27,21,29],[21,30,21,36],[21,37,21,38],[12,27,12,29],[11,37,11,38],[10,27,10,38],[15,30,15,36],[13,30,13,36],[60,29,60,38],[31,37,31,38],[11,27,11,29],[13,27,13,29],[11,30,11,36],[25,27,25,30],[15,37,15,38],[22,27,22,38],[12,30,12,36],[12,37,12,38],[28,27,28,38],[46,0,46,38],[15,27,15,29],[27,28,27,32],[17,37,17,38],[40,0,41,38],[8,0,8,25],[5,0,5,25],[5,27,5,38],[6,0,6,25],[7,0,7,25],[47,0,48,38],[49,0,49,38],[50,0,51,38],[18,37,18,38],[18,30,18,36],[20,30,20,36],[23,37,23,38],[19,30,19,36],[45,0,45,38],[42,0,42,38],[39,0,39,38],[38,0,38,38],[19,27,19,29],[30,27,30,38],[29,37,29,38],[27,34,27,38],[24,27,24,38],[23,27,23,36],[31,27,31,36],[3,0,3,38],[58,0,58,38],[25,31,25,32],[25,33,25,35],[25,36,25,38],[0,0,0,38],[19,37,19,38],[20,27,20,29],[20,37,20,38],[16,27,16,38],[17,27,17,29],[17,30,17,36],[18,27,18,29],[13,37,13,38],[14,27,14,29],[14,30,14,36],[14,37,14,38],[1,0,1,4],[1,5,1,7],[1,8,1,27],[1,28,1,31],[1,32,1,38],[9,0,9,25],[4,0,4,38]]}
["「FOOD HOKKAIDO 2024」　エントリーシート【商品情報_1】\n【注意事項】　　\n※海外バイヤーとの商談のため、英語で入力していただく箇所もございます。\n　翻訳会社の紹介が必要な場合はお問い合わせください。\n\n※商品情報は、１品目ごとにご記入いただき、写真を必ず添付してください。文字情報のみでは商品のイメージがしにくいためお願いいたします。\n※（必須）欄は必ず記入いただくようお願いいたします。\n　 また、フォーマットの変更（シートを追加するなど）はご遠慮願います。"]
["企業Ｎｏ．",null,null,null,null,{"$f":"企業情報!$P$2","v":0},null,null,{"$f":"企業情報!$L$4","v":0},null,null,null,null,null,null,null,null,null,null,null,null,null,null,null,null,null,null,null,"商品No.",null,null,null,1]
[]
["【商品特性と取引条件】"]
["商品情報は、１品目毎にご記入し、写真を必ず添付してください。"]
["商品名（必須）",null,null,null,null,null,null,null,null,null,null,null,null,null,null,null,null,null,null,null,null,null,null,null,null,null,null,"品種・品目（必須）"]
["日本語"]
[null,null,null,null,null,null,null,null,null,null,null,null,null,null,null,null,null,null,null,null,null,null,null,null,null,null,null,"▼クリックしてプルダウンよりお選びください"]
["英語"]
[]
["商品画像貼付（必須）\n(1MB以内）",null,null,null,null,null,null,null,null,null,null,null,null,null,null,null,null,null,null,null,null,null,null,null,null,null,null,"1個あたりのサイズ"]
[null,null,null,null,null,null,null,null,null,null,null,null,null,null,null,null,null,null,null,null,null,null,null,null,null,null,null,"幅",null,null,null,null,null,null,null,null,null,"cm",null,null,{"$f":"AE12&AL12","v":"cm"}]
[null,null,null,null,null,null,null,null,null,null,null,null,null,null,null,null,null,null,null,null,null,null,null,null,null,null,null,"奥行き",null,null,null,null,null,null,null,null,null,"cm",null,null,{"$f":"AE13&AL13","v":"cm"}]
[null,null,null,null,null,null,null,null,null,null,null,null,null,null,null,null,null,null,null,null,null,null,null,null,null,null,null,"高さ",null,null,null,null,null,null,null,null,null,"cm",null,null,{"$f":"AE14&AL14","v":"cm"}]
[null,null,null,null,null,null,null,null,null,null,null,null,null,null,null,null,null,null,null,null,null,null,null,null,null,null,null,"重量",null,null,null,null,null,null,null,null,null,"g",null,null,{"$f":"AE15&AL15","v":"g"}]
[null,null,null,null,null,null,null,null,null,null,null,null,null,null,null,null,null,null,null,null,null,null,null,null,null,null,null,"内容量",null,null,null,null,null,null,null,null,null,"g",null,null,{"$f":"AE16&AL16","v":"g"}]
[null,null,null,null,null,null,null,null,null,null,null,null,null,null,null,null,null,null,null,null,null,null,null,null,null,null,null,"1ケースあたりのサイズ"]
[null,null,null,null,null,null,null,null,null,null,null,null,null,null,null,null,null,null,null,null,null,null,null,null,null,null,null,"幅",null,null,null,null,null,null,null,null,null,"cm",null,null,{"$f":"AE18&AL18","v":"cm"}]
[null,null,null,null,null,null,null,null,null,null,null,null,null,null,null,null,null,null,null,null,null,null,null,null,null,null,null,"奥行き",null,null,null,null,null,null,null,null,null,"cm",null,null,{"$f":"AE19&AL19","v":"cm"}]
[null,null,null,null,null,null,null,null,null,null,null,null,null,null,null,null,null,null,null,null,null,null,null,null,null,null,null,"高さ",null,null,null,null,null,null,null,null,null,"cm",null,null,{"$f":"AE20&AL20","v":"cm"}]
[null,null,null,null,null,null,null,null,null,null,null,null,null,null,null,null,null,null,null,null,null,null,null,null,null,null,null,"重量",null,null,null,null,null,null,null,null,null,"kg",null,null,{"$f":"AE21&AL21","v":"kg"}]
[null,null,null,null,null,null,null,null,null,null,null,null,null,null,null,null,null,null,null,null,null,null,null,null,null,null,null,"入り数",null,null,null,null,null,null,null,null,null,"箱",null,null,{"$f":"AE22&AL22","v":"箱"}]
[null,null,null,null,null,null,null,null,null,null,null,null,null,null,null,null,null,null,null,null,null,null,null,null,null,null,null,"最低ロット （必須）"]
[null,null,null,null,null,null,null,null,null,null,null,null,null,null,null,null,null,null,null,null,null,null,null,null,null,null,null,null,null,null,null,null,null,null,null,null,null,"ケース",null,null,{"$f":"AB24&AL24","v":"ケース"}]
[null,null,null,null,null,null,null,null,null,null,null,null,null,null,null,null,null,null,null,null,null,null,null,null,null,null,null,"消費期限(プルダウンよりお選びください）（必須）"]
[null,null,null,null,null,null,null,null,null,null,null,null,null,null,null,null,null,null,null,null,null,null,null,null,null,null,null,"消費期限",null,null,null,"▼",null,null,null,null,"▼"]
[null,null,null,null,null,null,null,null,null,null,null,null,null,null,null,null,null,null,null,null,null,null,null,null,null,null,null,"生産地/最終加工地（都道府県名）（必須）"]
[null,null,null,null,null,null,null,null,null,null,null,null,null,null,null,null,null,null,null,null,null,null,null,null,null,null,null,"日本語",null,null,null,null,null,"英語"]
[null,null,null,null,null,null,null,null,null,null,null,null,null,null,null,null,null,null,null,null,null,null,null,null,null,null,null,"原材料の国産割合(重量ベース)"]
[null,null,null,null,null,null,null,null,null,null,null,null,null,null,null,null,null,null,null,null,null,null,null,null,null,null,null,null,null,null,null,null,null,null,null,null,null,"%"]
[null,null,null,null,null,null,null,null,null,null,null,null,null,null,null,null,null,null,null,null,null,null,null,null,null,null,null,"国内標準小売価格 (税抜)（必須）"]
[null,null,null,null,null,null,null,null,null,null,null,null,null,null,null,null,null,null,null,null,null,null,null,null,null,null,null,null,null,null,null,null,null,null,null,null,null,"円"]
[null,null,null,null,null,null,null,null,null,null,null,null,null,null,null,null,null,null,null,null,null,null,null,null,null,null,null,"JANコード（半角数字のみ）（必須）"]
[]
[null,null,null,null,null,null,null,null,null,null,null,null,null,null,null,null,null,null,null,null,null,null,null,null,null,null,null,"HSコード（半角数字のみ）（必須）"]
[]
[]
[]
["原材料、添加物　※内容量の多いものから順に記載（必須）"]
["日本語"]
[]
[]
["英語"]
[]
[]
["商品ＰＲ、特徴、受賞歴、輸出先国での売れ具合等 （200字以内）※201字以上は入力できません（必須）"]
["日本語"]
[]
[]
["英語"]
[]
[]
[]
["商品取得認証等（複数回答可）"]
[null,null,null,null,null,null,null,null,null,null,null,null,null,null,null,null,null,null,null,null,null,null,null,null,null,null,null,null,null,null,null,null,null,null,null,null,null,null,null,null,false,false,false,false,false]
[null,null,null,null,null,null,null,null,null,null,null,null,null,null,null,null,null,null,null,null,null,null,null,null,null,null,null,null,null,null,null,null,null,null,null,null,null,null,null,null,false,false,false,false,false]
["「その他」の場合",null,null,null,null,null,null,null,"日本語",null,null,null,null,null,null,null,null,null,null,null,null,null,null,"英語",null,null,null,null,null,null,null,null,null,null,null,null,null,null,null,null,{"$f":"K57","v":0},{"$f":"Z57","v":0}]
[]
["【商品特性と取引条件】"]
["当該商品の売り先　（選択式）（必須）"]
[null,null,null,null,null,null,null,null,null,null,null,null,null,null,null,null,null,null,null,null,null,null,null,null,null,null,null,null,null,null,null,null,null,null,null,null,null,null,null,null,false,false,false,false]
[null,null,null,null,null,null,null,null,null,null,null,null,null,null,null,null,null,null,null,null,null,null,null,null,null,null,null,null,null,null,null,null,null,null,null,null,null,null,null,null,false,false,false,false,false,false]
[]
["ターゲット層"]
["所得層（複数選択可）",null,null,null,null,null,null,null,null,null,null,null,null,null,null,null,null,null,null,null,null,null,null,"性別"]
[null,null,null,null,null,null,null,null,null,null,null,null,null,null,null,null,null,null,null,null,null,null,null,"▼プルダウンよりお選びください",null,null,null,null,null,null,null,null,null,null,null,null,null,null,null,null,false,false,false]
["年代（複数選択可）"]
[null,null,null,null,null,null,null,null,null,null,null,null,null,null,null,null,null,null,null,null,null,null,null,null,null,null,null,null,null,null,null,null,null,null,null,null,null,null,null,null,false,false,false,false,false]
[]
["保存方法　（「その他」の場合は具体的に［］内にお書きください。）(複数選択可)"]
[null,null,null,null,null,null,null,null,null,null,null,null,null,null,null,null,null,null,null,null,null,null,null,null,null,null,null,null,null,null,null,null,null,null,null,null,null,null,null,null,false,false,false]
[null,null,null,null,null,null,null,null,null,null,null,null,null,null,null,null,null,null,null,null,null,null,null,null,null,null,"℃",null,null,null,null,null,null,null,null,null,null,null,null,null,false,false]
[null,null,null,null,null,null,null,null,null,null,null,null,null,null,null,null,null,null,null,null,null,null,null,null,null,null,null,null,null,null,null,null,null,null,null,null,null,null,null,null,false]
[]
["出荷可能時期",null,null,null,null,null,null,null,null,null,null,null,null,null,null,null,null,null,null,null,null,null,null,null,null,null,"輸出時のラベル対応",null,null,null,null,null,null,"OEMの可否"]
[null,null,null,null,null,null,null,null,null,null,null,null,null,null,null,null,null,null,"月","~",null,null,null,"月",null,null,"▼プルダウン",null,null,null,null,null,null,"▼プルダウン",null,null,null,null,null,null,false,false,{"$f":"P76&S76&T76&U76&X76","v":"月~月"}]
[]
["レシピ事例/食べ方および商談相手であるバイヤーへのメッセージ・要望等　（200字以内）※201字以上は入力できません"]
["日本語"]
[]
[]
["英語"]
[]
[]
[]
["※本エントリーシートの企業情報・商品情報は、事前調整のため商談相手に開示します。"]
[]
["品種・品目","長さ","重量","内容量","賞味期限_前","賞味期限_単位","ケース","ロット","ラベル","ラベル","性別","OEM","品質保持期限"]
["▼クリックしてプルダウンよりお選びください","▼","▼","▼","▼","▼","▼","▼","▼プルダウンよりお選びください","▼プルダウン","▼プルダウンよりお選びください","▼プルダウン","▼"]
["肉・肉を用いた加工品","cm","mg","ml","常温","日","本","箱","可","可","男性","可","賞味期限"]
["酪農製品・鳥卵・鳥卵加工品","mm","g","l","冷蔵","カ月","箱","包","不可","不可","女性","不可","消費期限"]
["魚介類・魚介類加工品",null,"kg","mg","冷凍","年","包","ケース",null,null,"男女両方"]
["穀類・穀類等加工品",null,null,"g",null,null,"ケース","カートン"]
["米・米加工品",null,null,"kg",null,null,"パック","コンテナ"]
["野菜・果実・野菜・果実加工品",null,null,null,null,null,"ピース","本"]
["糖類・糖類加工品・はちみつ",null,null,null,null,null,"個","個"]
["コーヒー・ココア・香辛料類"]
["茶葉"]
["調味料"]
["動・植物性油脂"]
["清酒"]
["焼酎"]
["その他のアルコール飲料"]
["非アルコール飲料"]
["その他の加工品"]

{"sheet":"商品情報_2_JP","index":3,"n_rows":100,"n_cols":46,"rows_kept":100,"cut":false,"hidden":false,"merged":[[2,0,2,38],[3,0,3,25],[3,27,3,38],[4,0,4,25],[5,0,5,25],[5,27,7,38],[6,0,6,25],[7,0,7,25],[0,0,0,38],[1,0,1,4],[1,5,1,7],[1,8,1,27],[1,28,1,31],[1,32,1,38],[11,37,11,38],[12,27,12,29],[12,30,12,36],[12,37,12,38],[13,27,13,29],[13,30,13,36],[13,37,13,38],[11,27,11,29],[11,30,11,36],[17,27,17,29],[17,30,17,36],[17,37,17,38],[18,27,18,29],[18,30,18,36],[18,37,18,38],[14,27,14,38],[15,27,15,29],[15,30,15,36],[15,37,15,38],[16,27,16,29],[16,30,16,36],[16,37,16,38],[27,37,27,38],[28,27,28,38],[22,27,22,38],[23,27,23,30],[23,31,23,32],[23,33,23,35],[23,36,23,38],[24,27,24,38],[19,27,19,29],[19,30,19,36],[19,37,19,38],[20,27,20,38],[21,27,21,36],[21,37,21,38],[35,0,35,38],[36,0,36,38],[37,0,38,38],[39,0,39,38],[40,0,41,38],[42,0,42,38],[29,27,29,36],[29,37,29,38],[30,27,30,38],[31,27,31,38],[32,27,32,38],[33,27,33,38],[8,0,33,25],[8,27,8,38],[9,27,9,29],[9,30,9,36],[9,37,9,38],[10,27,10,29],[10,30,10,36],[10,37,10,38],[25,28,25,32],[25,34,25,38],[26,27,26,38],[27,27,27,36],[43,0,43,38],[44,0,45,38],[46,0,46,38],[47,0,48,38],[50,0,50,38],[51,0,51,7],[51,8,51,15],[51,16,51,23],[51,24,51,31],[51,32,51,38],[52,0,52,7],[52,8,52,15],[52,16,52,23],[52,24,52,31],[52,32,52,38],[53,0,53,7],[53,8,53,9],[53,10,53,22],[53,23,53,24],[53,25,53,38],[56,33,56,38],[58,0,58,38],[59,0,59,22],[59,23,59,38],[60,23,60,38],[61,0,61,38],[54,0,54,38],[55,0,55,8],[55,9,55,18],[55,19,55,28],[55,29,55,38],[56,0,56,8],[56,9,56,15],[56,16,56,21],[56,22,56,27],[56,28,56,32],[65,0,65,12],[65,13,65,25],[65,26,65,38],[66,0,66,12],[66,13,66,18],[66,19,66,25],[62,0,62,7],[62,8,62,15],[62,16,62,23],[62,24,62,31],[62,32,62,38],[64,0,64,38],[80,0,80,38],[70,33,70,37],[72,0,72,38],[73,0,73,38],[74,0,75,38],[76,0,76,38],[77,0,78,38],[67,0,67,5],[67,6,67,38],[69,0,69,23],[69,26,69,31],[69,33,69,37],[70,0,70,8],[70,9,70,14],[70,15,70,17],[70,20,70,22],[70,26,70,31]]}
["「FOOD HOKKAIDO 2023」　エントリーシート【商品情報_2】\n【注意事項】　　\n※海外バイヤーとの商談のため、英語で入力していただく箇所もございます。\n　翻訳会社の紹介が必要な場合はお問い合わせください。\n\n※商品情報は、１品目ごとにご記入いただき、写真を必ず添付してください。文字情報のみでは商品のイメージがしにくいためお願いいたします。\n※（必須）欄は必ず記入いただくようお願いいたします。\n　 また、フォーマットの変更（シートを追加するなど）はご遠慮願います。"]
["企業Ｎｏ．",null,null,null,null,{"$f":"企業情報!$P$2","v":0},null,null,{"$f":"企業情報!$L$4","v":0},null,null,null,null,null,null,null,null,null,null,null,null,null,null,null,null,null,null,null,"商品No.",null,null,null,2]
["商品情報は、１品目毎にご記入し、写真を必ず添付してください。"]
["商品名（必須）",null,null,null,null,null,null,null,null,null,null,null,null,null,null,null,null,null,null,null,null,null,null,null,null,null,null,"品種・品目（必須）"]
["日本語"]
[null,null,null,null,null,null,null,null,null,null,null,null,null,null,null,null,null,null,null,null,null,null,null,null,null,null,null,"▼クリックしてプルダウンよりお選びください"]
["英語"]
[]
["商品画像貼付（必須）\n(1MB以内）",null,null,null,null,null,null,null,null,null,null,null,null,null,null,null,null,null,null,null,null,null,null,null,null,null,null,"1個あたりのサイズ"]
[null,null,null,null,null,null,null,null,null,null,null,null,null,null,null,null,null,null,null,null,null,null,null,null,null,null,null,"幅",null,null,null,null,null,null,null,null,null,"▼",null,null,{"$f":"AE10&AL10","v":"▼"}]
[null,null,null,null,null,null,null,null,null,null,null,null,null,null,null,null,null,null,null,null,null,null,null,null,null,null,null,"奥行き",null,null,null,null,null,null,null,null,null,"▼",null,null,{"$f":"AE11&AL11","v":"▼"}]
[null,null,null,null,null,null,null,null,null,null,null,null,null,null,null,null,null,null,null,null,null,null,null,null,null,null,null,"高さ",null,null,null,null,null,null,null,null,null,"▼",null,null,{"$f":"AE12&AL12","v":"▼"}]
[null,null,null,null,null,null,null,null,null,null,null,null,null,null,null,null,null,null,null,null,null,null,null,null,null,null,null,"重量",null,null,null,null,null,null,null,null,null,"▼",null,null,{"$f":"AE13&AL13","v":"▼"}]
[null,null,null,null,null,null,null,null,null,null,null,null,null,null,null,null,null,null,null,null,null,null,null,null,null,null,null,"内容量",null,null,null,null,null,null,null,null,null,"▼",null,null,{"$f":"AE14&AL14","v":"▼"}]
[null,null,null,null,null,null,null,null,null,null,null,null,null,null,null,null,null,null,null,null,null,null,null,null,null,null,null,"1ケースあたりのサイズ"]
[null,null,null,null,null,null,null,null,null,null,null,null,null,null,null,null,null,null,null,null,null,null,null,null,null,null,null,"幅",null,null,null,null,null,null,null,null,null,"▼",null,null,{"$f":"AE16&AL16","v":"▼"}]
[null,null,null,null,null,null,null,null,null,null,null,null,null,null,null,null,null,null,null,null,null,null,null,null,null,null,null,"奥行き",null,null,null,null,null,null,null,null,null,"▼",null,null,{"$f":"AE17&AL17","v":"▼"}]
[null,null,null,null,null,null,null,null,null,null,null,null,null,null,null,null,null,null,null,null,null,null,null,null,null,null,null,"高さ",null,null,null,null,null,null,null,null,null,"▼",null,null,{"$f":"AE18&AL18","v":"▼"}]
[null,null,null,null,null,null,null,null,null,null,null,null,null,null,null,null,null,null,null,null,null,null,null,null,null,null,null,"重量",null,null,null,null,null,null,null,null,null,"▼",null,null,{"$f":"AE19&AL19","v":"▼"}]
[null,null,null,null,null,null,null,null,null,null,null,null,null,null,null,null,null,null,null,null,null,null,null,null,null,null,null,"入り数",null,null,null,null,null,null,null,null,null,"▼",null,null,{"$f":"AE20&AL20","v":"▼"}]
[null,null,null,null,null,null,null,null,null,null,null,null,null,null,null,null,null,null,null,null,null,null,null,null,null,null,null,"最低ロット （必須）"]
[null,null,null,null,null,null,null,null,null,null,null,null,null,null,null,null,null,null,null,null,null,null,null,null,null,null,null,null,null,null,null,null,null,null,null,null,null,"▼",null,null,{"$f":"AB22&AL22","v":"▼"}]
[null,null,null,null,null,null,null,null,null,null,null,null,null,null,null,null,null,null,null,null,null,null,null,null,null,null,null,"消費期限(プルダウンよりお選びください）（必須）"]
[null,null,null,null,null,null,null,null,null,null,null,null,null,null,null,null,null,null,null,null,null,null,null,null,null,null,null,"消費期限",null,null,null,"▼",null,null,null,null,"▼",null,null,null,{"$f":"AF24&AH24&AK24","v":"▼▼"}]
[null,null,null,null,null,null,null,null,null,null,null,null,null,null,null,null,null,null,null,null,null,null,null,null,null,null,null,"生産地/最終加工地（都道府県名）（必須）"]
[null,null,null,null,null,null,null,null,null,null,null,null,null,null,null,null,null,null,null,null,null,null,null,null,null,null,null,"日本語",null,null,null,null,null,"英語"]
[null,null,null,null,null,null,null,null,null,null,null,null,null,null,null,null,null,null,null,null,null,null,null,null,null,null,null,"原材料の国産割合(重量ベース)"]
[null,null,null,null,null,null,null,null,null,null,null,null,null,null,null,null,null,null,null,null,null,null,null,null,null,null,null,null,null,null,null,null,null,null,null,null,null,"%"]
[null,null,null,null,null,null,null,null,null,null,null,null,null,null,null,null,null,null,null,null,null,null,null,null,null,null,null,"国内標準小売価格 (税抜)（必須）"]
[null,null,null,null,null,null,null,null,null,null,null,null,null,null,null,null,null,null,null,null,null,null,null,null,null,null,null,null,null,null,null,null,null,null,null,null,null,"円"]
[null,null,null,null,null,null,null,null,null,null,null,null,null,null,null,null,null,null,null,null,null,null,null,null,null,null,null,"JANコード（半角数字のみ）（必須）"]
[]
[null,null,null,null,null,null,null,null,null,null,null,null,null,null,null,null,null,null,null,null,null,null,null,null,null,null,null,"HSコード（半角数字のみ）（必須）"]
[]
[]
["原材料、添加物　※内容量の多いものから順に記載（必須）"]
["日本語"]
[]
[]
["英語"]
[]
[]
["商品ＰＲ、特徴、受賞歴、輸出先国での売れ具合等 （200字以内）※201字以上は入力できません（必須）"]
["日本語"]
[]
[]
["英語"]
[]
[]
[]
["商品取得認証等（複数回答可）"]
[null,null,null,null,null,null,null,null,null,null,null,null,null,null,null,null,null,null,null,null,null,null,null,null,null,null,null,null,null,null,null,null,null,null,null,null,null,null,null,null,false,false,false,false,false]
[null,null,null,null,null,null,null,null,null,null,null,null,null,null,null,null,null,null,null,null,null,null,null,null,null,null,null,null,null,null,null,null,null,null,null,null,null,null,null,null,false,false,false,false,false]
["「その他」の場合",null,null,null,null,null,null,null,"日本語",null,null,null,null,null,null,null,null,null,null,null,null,null,null,"英語",null,null,null,null,null,null,null,null,null,null,null,null,null,null,null,null,{"$f":"K54","v":0},{"$f":"Z54","v":0}]
["当該商品の売り先　（選択式）（必須）"]
[null,null,null,null,null,null,null,null,null,null,null,null,null,null,null,null,null,null,null,null,null,null,null,null,null,null,null,null,null,null,null,null,null,null,null,null,null,null,null,null,false,false,false,false]
[null,null,null,null,null,null,null,null,null,null,null,null,null,null,null,null,null,null,null,null,null,null,null,null,null,null,null,null,null,null,null,null,null,null,null,null,null,null,null,null,false,false,false,false,false,false]
[]
["ターゲット層"]
["所得層（複数選択可）",null,null,null,null,null,null,null,null,null,null,null,null,null,null,null,null,null,null,null,null,null,null,"性別"]
[null,null,null,null,null,null,null,null,null,null,null,null,null,null,null,null,null,null,null,null,null,null,null,"▼プルダウンよりお選びください",null,null,null,null,null,null,null,null,null,null,null,null,null,null,null,null,false,false,false]
["年代（複数選択可）"]
[null,null,null,null,null,null,null,null,null,null,null,null,null,null,null,null,null,null,null,null,null,null,null,null,null,null,null,null,null,null,null,null,null,null,null,null,null,null,null,null,false,false,false,false,false]
[]
["保存方法　（「その他」の場合は具体的に［］内にお書きください。）(複数選択可)"]
[null,null,null,null,null,null,null,null,null,null,null,null,null,null,null,null,null,null,null,null,null,null,null,null,null,null,null,null,null,null,null,null,null,null,null,null,null,null,null,null,false,false,false]
[null,null,null,null,null,null,null,null,null,null,null,null,null,null,null,null,null,null,null,null,null,null,null,null,null,null,"℃",null,null,null,null,null,null,null,null,null,null,null,null,null,false,false]
[null,null,null,null,null,null,null,null,null,null,null,null,null,null,null,null,null,null,null,null,null,null,null,null,null,null,null,null,null,null,null,null,null,null,null,null,null,null,null,null,false]
[]
["出荷可能時期",null,null,null,null,null,null,null,null,null,null,null,null,null,null,null,null,null,null,null,null,null,null,null,null,null,"輸出時のラベル対応",null,null,null,null,null,null,"OEMの可否"]
[null,null,null,null,null,null,null,null,null,null,null,null,null,null,null,null,null,null,"月","~",null,null,null,"月",null,null,"▼プルダウン",null,null,null,null,null,null,"▼プルダウン",null,null,null,null,null,null,false,false,{"$f":"P71&S71&T71&U71&X71","v":"月~月"}]
[]
["レシピ事例/食べ方および商談相手であるバイヤーへのメッセージ・要望等　（200字以内）※201字以上は入力できません"]
["日本語"]
[]
[]
["英語"]
[]
[]
[]
["※本エントリーシートの企業情報・商品情報は、事前調整のため商談相手に開示します。"]
[]
["品種・品目","長さ","重量","内容量","賞味期限_前","賞味期限_単位","ケース","ロット","ラベル","ラベル","性別","OEM","品質保持期限"]
["▼クリックしてプルダウンよりお選びください","▼","▼","▼","▼","▼","▼","▼","▼プルダウンよりお選びください","▼プルダウン","▼プルダウンよりお選びください","▼プルダウン","▼"]
["肉・肉を用いた加工品","cm","mg","ml","常温","日","本","箱","可","可","男性","可","賞味期限"]
["酪農製品・鳥卵・鳥卵加工品","mm","g","l","冷蔵","カ月","箱","包","不可","不可","女性","不可","消費期限"]
["魚介類・魚介類加工品",null,"kg","mg","冷凍","年","包","ケース",null,null,"男女両方"]
["穀類・穀類等加工品",null,null,"g",null,null,"ケース","カートン"]
["米・米加工品",null,null,"kg",null,null,"パック","コンテナ"]
["野菜・果実・野菜・果実加工品",null,null,null,null,null,"ピース","本"]
["糖類・糖類加工品・はちみつ",null,null,null,null,null,"個","個"]
["コーヒー・ココア・香辛料類"]
["茶葉"]
["調味料"]
["動・植物性油脂"]
["清酒"]
["焼酎"]
["その他のアルコール飲料"]
["非アルコール飲料"]
["その他の加工品"]

{"sheet":"商品情報_3_JP","index":4,"n_rows":100,"n_cols":46,"rows_kept":100,"cut":false,"hidden":false,"merged":[[2,0,2,38],[3,0,3,25],[3,27,3,38],[4,0,4,25],[5,0,5,25],[5,27,7,38],[6,0,6,25],[7,0,7,25],[0,0,0,38],[1,0,1,4],[1,5,1,7],[1,8,1,27],[1,28,1,31],[1,32,1,38],[11,37,11,38],[12,27,12,29],[12,30,12,36],[12,37,12,38],[13,27,13,29],[13,30,13,36],[13,37,13,38],[11,27,11,29],[11,30,11,36],[17,27,17,29],[17,30,17,36],[17,37,17,38],[18,27,18,29],[18,30,18,36],[18,37,18,38],[14,27,14,38],[15,27,15,29],[15,30,15,36],[15,37,15,38],[16,27,16,29],[16,30,16,36],[16,37,16,38],[27,37,27,38],[28,27,28,38],[22,27,22,38],[23,27,23,30],[23,31,23,32],[23,33,23,35],[23,36,23,38],[24,27,24,38],[19,27,19,29],[19,30,19,36],[19,37,19,38],[20,27,20,38],[21,27,21,36],[21,37,21,38],[35,0,35,38],[36,0,36,38],[37,0,38,38],[39,0,39,38],[40,0,41,38],[42,0,42,38],[29,27,29,36],[29,37,29,38],[30,27,30,38],[31,27,31,38],[32,27,32,38],[33,27,33,38],[8,0,33,25],[8,27,8,38],[9,27,9,29],[9,30,9,36],[9,37,9,38],[10,27,10,29],[10,30,10,36],[10,37,10,38],[25,28,25,32],[25,34,25,38],[26,27,26,38],[27,27,27,36],[43,0,43,38],[44,0,45,38],[46,0,46,38],[47,0,48,38],[50,0,50,38],[51,0,51,7],[51,8,51,15],[51,16,51,23],[51,24,51,31],[51,32,51,38],[52,0,52,7],[52,8,52,15],[52,16,52,23],[52,24,52,31],[52,32,52,38],[53,0,53,7],[53,8,53,9],[53,10,53,22],[53,23,53,24],[53,25,53,38],[56,33,56,38],[58,0,58,38],[59,0,59,22],[59,23,59,38],[60,23,60,38],[61,0,61,38],[54,0,54,38],[55,0,55,8],[55,9,55,18],[55,19,55,28],[55,29,55,38],[56,0,56,8],[56,9,56,15],[56,16,56,21],[56,22,56,27],[56,28,56,32],[65,0,65,12],[65,13,65,25],[65,26,65,38],[66,0,66,12],[66,13,66,18],[66,19,66,25],[62,0,62,7],[62,8,62,15],[62,16,62,23],[62,24,62,31],[62,32,62,38],[64,0,64,38],[80,0,80,38],[70,33,70,37],[72,0,72,38],[73,0,73,38],[74,0,75,38],[76,0,76,38],[77,0,78,38],[67,0,67,5],[67,6,67,38],[69,0,69,23],[69,26,69,31],[69,33,69,37],[70,0,70,8],[70,9,70,14],[70,15,70,17],[70,20,70,22],[70,26,70,31]]}
["「FOOD HOKKAIDO 2022」　エントリーシート【商品情報_3】\n【注意事項】　　\n※海外バイヤーとの商談のため、英語で入力していただく箇所もございます。\n　翻訳会社の紹介が必要な場合はお問い合わせください。\n\n※商品情報は、１品目ごとにご記入いただき、写真を必ず添付してください。文字情報のみでは商品のイメージがしにくいためお願いいたします。\n※（必須）欄は必ず記入いただくようお願いいたします。\n　 また、フォーマットの変更（シートを追加するなど）はご遠慮願います。"]
["企業Ｎｏ．",null,null,null,null,{"$f":"企業情報!$P$2","v":0},null,null,{"$f":"企業情報!$L$4","v":0},null,null,null,null,null,null,null,null,null,null,null,null,null,null,null,null,null,null,null,"商品No.",null,null,null,3]
["商品情報は、１品目毎にご記入し、写真を必ず添付してください。"]
["商品名（必須）",null,null,null,null,null,null,null,null,null,null,null,null,null,null,null,null,null,null,null,null,null,null,null,null,null,null,"品種・品目（必須）"]
["日本語"]
[null,null,null,null,null,null,null,null,null,null,null,null,null,null,null,null,null,null,null,null,null,null,null,null,null,null,null,"▼クリックしてプルダウンよりお選びください"]
["英語"]
[]
["商品画像貼付（必須）\n(1MB以内）",null,null,null,null,null,null,null,null,null,null,null,null,null,null,null,null,null,null,null,null,null,null,null,null,null,null,"1個あたりのサイズ"]
[null,null,null,null,null,null,null,null,null,null,null,null,null,null,null,null,null,null,null,null,null,null,null,null,null,null,null,"幅",null,null,null,null,null,null,null,null,null,"▼",null,null,{"$f":"AE10&AL10","v":"▼"}]
[null,null,null,null,null,null,null,null,null,null,null,null,null,null,null,null,null,null,null,null,null,null,null,null,null,null,null,"奥行き",null,null,null,null,null,null,null,null,null,"▼",null,null,{"$f":"AE11&AL11","v":"▼"}]
[null,null,null,null,null,null,null,null,null,null,null,null,null,null,null,null,null,null,null,null,null,null,null,null,null,null,null,"高さ",null,null,null,null,null,null,null,null,null,"▼",null,null,{"$f":"AE12&AL12","v":"▼"}]
[null,null,null,null,null,null,null,null,null,null,null,null,null,null,null,null,null,null,null,null,null,null,null,null,null,null,null,"重量",null,null,null,null,null,null,null,null,null,"▼",null,null,{"$f":"AE13&AL13","v":"▼"}]
[null,null,null,null,null,null,null,null,null,null,null,null,null,null,null,null,null,null,null,null,null,null,null,null,null,null,null,"内容量",null,null,null,null,null,null,null,null,null,"▼",null,null,{"$f":"AE14&AL14","v":"▼"}]
[null,null,null,null,null,null,null,null,null,null,null,null,null,null,null,null,null,null,null,null,null,null,null,null,null,null,null,"1ケースあたりのサイズ"]
[null,null,null,null,null,null,null,null,null,null,null,null,null,null,null,null,null,null,null,null,null,null,null,null,null,null,null,"幅",null,null,null,null,null,null,null,null,null,"▼",null,null,{"$f":"AE16&AL16","v":"▼"}]
[null,null,null,null,null,null,null,null,null,null,null,null,null,null,null,null,null,null,null,null,null,null,null,null,null,null,null,"奥行き",null,null,null,null,null,null,null,null,null,"▼",null,null,{"$f":"AE17&AL17","v":"▼"}]
[null,null,null,null,null,null,null,null,null,null,null,null,null,null,null,null,null,null,null,null,null,null,null,null,null,null,null,"高さ",null,null,null,null,null,null,null,null,null,"▼",null,null,{"$f":"AE18&AL18","v":"▼"}]
[null,null,null,null,null,null,null,null,null,null,null,null,null,null,null,null,null,null,null,null,null,null,null,null,null,null,null,"重量",null,null,null,null,null,null,null,null,null,"▼",null,null,{"$f":"AE19&AL19","v":"▼"}]
[null,null,null,null,null,null,null,null,null,null,null,null,null,null,null,null,null,null,null,null,null,null,null,null,null,null,null,"入り数",null,null,null,null,null,null,null,null,null,"▼",null,null,{"$f":"AE20&AL20","v":"▼"}]
[null,null,null,null,null,null,null,null,null,null,null,null,null,null,null,null,null,null,null,null,null,null,null,null,null,null,null,"最低ロット （必須）"]
[null,null,null,null,null,null,null,null,null,null,null,null,null,null,null,null,null,null,null,null,null,null,null,null,null,null,null,null,null,null,null,null,null,null,null,null,null,"▼",null,null,{"$f":"AB22&AL22","v":"▼"}]
[null,null,null,null,null,null,null,null,null,null,null,null,null,null,null,null,null,null,null,null,null,null,null,null,null,null,null,"消費期限(プルダウンよりお選びください）（必須）"]
[null,null,null,null,null,null,null,null,null,null,null,null,null,null,null,null,null,null,null,null,null,null,null,null,null,null,null,"消費期限",null,null,null,"▼",null,null,null,null,"▼",null,null,null,{"$f":"AF24&AH24&AK24","v":"▼▼"}]
[null,null,null,null,null,null,null,null,null,null,null,null,null,null,null,null,null,null,null,null,null,null,null,null,null,null,null,"生産地/最終加工地（都道府県名）（必須）"]
[null,null,null,null,null,null,null,null,null,null,null,null,null,null,null,null,null,null,null,null,null,null,null,null,null,null,null,"日本語",null,null,null,null,null,"英語"]
[null,null,null,null,null,null,null,null,null,null,null,null,null,null,null,null,null,null,null,null,null,null,null,null,null,null,null,"原材料の国産割合(重量ベース)"]
[null,null,null,null,null,null,null,null,null,null,null,null,null,null,null,null,null,null,null,null,null,null,null,null,null,null,null,null,null,null,null,null,null,null,null,null,null,"%"]
[null,null,null,null,null,null,null,null,null,null,null,null,null,null,null,null,null,null,null,null,null,null,null,null,null,null,null,"国内標準小売価格 (税抜)（必須）"]
[null,null,null,null,null,null,null,null,null,null,null,null,null,null,null,null,null,null,null,null,null,null,null,null,null,null,null,null,null,null,null,null,null,null,null,null,null,"円"]
[null,null,null,null,null,null,null,null,null,null,null,null,null,null,null,null,null,null,null,null,null,null,null,null,null,null,null,"JANコード（半角数字のみ）（必須）"]
[]
[null,null,null,null,null,null,null,null,null,null,null,null,null,null,null,null,null,null,null,null,null,null,null,null,null,null,null,"HSコード（半角数字のみ）（必須）"]
[]
[]
["原材料、添加物　※内容量の多いものから順に記載（必須）"]
["日本語"]
[]
[]
["英語"]
[]
[]
["商品ＰＲ、特徴、受賞歴、輸出先国での売れ具合等 （200字以内）※201字以上は入力できません（必須）"]
["日本語"]
[]
[]
["英語"]
[]
[]
[]
["商品取得認証等（複数回答可）"]
[null,null,null,null,null,null,null,null,null,null,null,null,null,null,null,null,null,null,null,null,null,null,null,null,null,null,null,null,null,null,null,null,null,null,null,null,null,null,null,null,false,false,false,false,false]
[null,null,null,null,null,null,null,null,null,null,null,null,null,null,null,null,null,null,null,null,null,null,null,null,null,null,null,null,null,null,null,null,null,null,null,null,null,null,null,null,false,false,false,false,false]
["「その他」の場合",null,null,null,null,null,null,null,"日本語",null,null,null,null,null,null,null,null,null,null,null,null,null,null,"英語",null,null,null,null,null,null,null,null,null,null,null,null,null,null,null,null,{"$f":"K54","v":0},{"$f":"Z54","v":0}]
["当該商品の売り先　（選択式）（必須）"]
[null,null,null,null,null,null,null,null,null,null,null,null,null,null,null,null,null,null,null,null,null,null,null,null,null,null,null,null,null,null,null,null,null,null,null,null,null,null,null,null,false,false,false,false]
[null,null,null,null,null,null,null,null,null,null,null,null,null,null,null,null,null,null,null,null,null,null,null,null,null,null,null,null,null,null,null,null,null,null,null,null,null,null,null,null,false,false,false,false,false,false]
[]
["ターゲット層"]
["所得層（複数選択可）",null,null,null,null,null,null,null,null,null,null,null,null,null,null,null,null,null,null,null,null,null,null,"性別"]
[null,null,null,null,null,null,null,null,null,null,null,null,null,null,null,null,null,null,null,null,null,null,null,"▼プルダウンよりお選びください",null,null,null,null,null,null,null,null,null,null,null,null,null,null,null,null,false,false,false]
["年代（複数選択可）"]
[null,null,null,null,null,null,null,null,null,null,null,null,null,null,null,null,null,null,null,null,null,null,null,null,null,null,null,null,null,null,null,null,null,null,null,null,null,null,null,null,false,false,false,false,false]
[]
["保存方法　（「その他」の場合は具体的に［］内にお書きください。）(複数選択可)"]
[null,null,null,null,null,null,null,null,null,null,null,null,null,null,null,null,null,null,null,null,null,null,null,null,null,null,null,null,null,null,null,null,null,null,null,null,null,null,null,null,false,false,false]
[null,null,null,null,null,null,null,null,null,null,null,null,null,null,null,null,null,null,null,null,null,null,null,null,null,null,"℃",null,null,null,null,null,null,null,null,null,null,null,null,null,false,false]
[null,null,null,null,null,null,null,null,null,null,null,null,null,null,null,null,null,null,null,null,null,null,null,null,null,null,null,null,null,null,null,null,null,null,null,null,null,null,null,null,false]
[]
["出荷可能時期",null,null,null,null,null,null,null,null,null,null,null,null,null,null,null,null,null,null,null,null,null,null,null,null,null,"輸出時のラベル対応",null,null,null,null,null,null,"OEMの可否"]
[null,null,null,null,null,null,null,null,null,null,null,null,null,null,null,null,null,null,"月","~",null,null,null,"月",null,null,"▼プルダウン",null,null,null,null,null,null,"▼プルダウン",null,null,null,null,null,null,false,false,{"$f":"P71&S71&T71&U71&X71","v":"月~月"}]
[]
["レシピ事例/食べ方および商談相手であるバイヤーへのメッセージ・要望等　（200字以内）※201字以上は入力できません"]
["日本語"]
[]
[]
["英語"]
[]
[]
[]
["※本エントリーシートの企業情報・商品情報は、事前調整のため商談相手に開示します。"]
[]
["品種・品目","長さ","重量","内容量","賞味期限_前","賞味期限_単位","ケース","ロット","ラベル","ラベル","性別","OEM","品質保持期限"]
["▼クリックしてプルダウンよりお選びください","▼","▼","▼","▼","▼","▼","▼","▼プルダウンよりお選びください","▼プルダウン","▼プルダウンよりお選びください","▼プルダウン","▼"]
["肉・肉を用いた加工品","cm","mg","ml","常温","日","本","箱","可","可","男性","可","賞味期限"]
["酪農製品・鳥卵・鳥卵加工品","mm","g","l","冷蔵","カ月","箱","包","不可","不可","女性","不可","消費期限"]
["魚介類・魚介類加工品",null,"kg","mg","冷凍","年","包","ケース",null,null,"男女両方"]
["穀類・穀類等加工品",null,null,"g",null,null,"ケース","カートン"]
["米・米加工品",null,null,"kg",null,null,"パック","コンテナ"]
["野菜・果実・野菜・果実加工品",null,null,null,null,null,"ピース","本"]
["糖類・糖類加工品・はちみつ",null,null,null,null,null,"個","個"]
["コーヒー・ココア・香辛料類"]
["茶葉"]
["調味料"]
["動・植物性油脂"]
["清酒"]
["焼酎"]
["その他のアルコール飲料"]
["非アルコール飲料"]
["その他の加工品"]

{"sheet":"Company profile","index":5,"n_rows":53,"n_cols":40,"rows_kept":53,"cut":false,"hidden":false,"merged":[[27,8,27,11],[27,14,27,17],[27,20,27,23],[27,26,27,29],[27,32,27,38],[52,2,52,9],[52,12,52,19],[52,22,52,29],[0,0,0,38],[23,0,23,38],[26,8,26,12],[26,15,26,19],[2,0,3,38],[4,0,4,38],[21,2,21,8],[21,11,21,17],[5,0,5,38],[20,0,20,38],[18,2,18,6],[18,7,18,38],[17,2,17,6],[43,12,43,38],[42,2,42,18],[42,21,42,38],[17,23,17,28],[26,2,26,5],[24,0,24,38],[30,0,30,38],[31,0,31,38],[33,0,33,38],[29,0,29,38],[27,2,27,5],[28,0,28,38],[26,22,26,27],[26,30,26,38],[25,0,25,38],[17,16,17,20],[45,2,45,18],[45,21,45,38],[44,0,44,38],[48,12,48,19],[47,0,47,38],[1,2,1,3],[15,2,15,6],[15,9,15,13],[15,16,15,20],[15,31,15,38],[14,0,14,38],[8,0,8,8],[8,9,8,18],[6,0,6,9],[7,0,7,9],[8,30,8,38],[12,31,12,38],[15,23,15,28],[9,19,9,27],[12,23,12,28],[12,9,12,13],[16,2,16,6],[9,0,9,8],[9,9,9,16],[16,16,16,20],[9,17,9,18],[16,9,16,13],[12,2,12,6],[12,16,12,20],[11,0,11,38],[9,30,9,38],[16,31,16,38],[16,23,16,28],[6,10,6,18],[7,10,7,18],[8,19,8,29],[9,28,9,29],[6,19,6,38],[7,19,7,38],[21,32,21,38],[21,29,21,31],[17,31,17,38],[21,20,21,26],[17,9,17,13],[50,2,50,9],[50,12,50,19],[50,22,50,29],[50,32,50,38],[34,2,34,38],[35,2,35,38],[36,2,36,38],[37,2,37,38],[38,2,38,38],[40,0,40,38],[39,0,39,38],[48,22,48,29],[48,30,48,38],[43,0,43,11],[41,0,41,38],[48,2,48,9]]}
[" Business Meeting\nApplication Form",null,null,null,null,null,null,null,null,null,null,null,null,null,null,null,null,null,null,null,null,null,null,null,null,null,null,null,null,null,null,null,null,null,null,null,null,null,null,"日本語"]
["No.",null,{"$f":"企業情報!P2","v":0}]
[{"$f":"企業情報!Y6","v":0}]
[]
["Address"]
[{"$f":"企業情報!L12","v":0}]
["TEL",null,null,null,null,null,null,null,null,null,"FAX",null,null,null,null,null,null,null,null,"Company website"]
[{"$f":"企業情報!H13","v":0},null,null,null,null,null,null,null,null,null,{"$f":"企業情報!Z13","v":0},null,null,null,null,null,null,null,null,{"$f":"企業情報!H14","v":0}]
["Year Founded",null,null,null,null,null,null,null,null,"Capital fund  (in JPY)",null,null,null,null,null,null,null,null,null,"Sales figures (in JPY)",null,null,null,null,null,null,null,null,null,null,"Number of Employees"]
[{"$f":"企業情報!F15","v":0},null,null,null,null,null,null,null,null,{"$f":"企業情報!O15","v":0},null,null,null,null,null,null,null,"yen",null,{"$f":"企業情報!Y15","v":0},null,null,null,null,null,null,null,null,"yen",null,{"$f":"企業情報!$AI$15","v":0}]
[]
["Industry Sector"]
[{"$f":"企業情報!AO18","v":false},{"$f":"IF(A13,\"●\",\"\")","v":""},"Manufacturing",null,null,null,null,{"$f":"企業情報!AP18","v":false},{"$f":"IF(H13,\"●\",\"\")","v":""},"Wholesale",null,null,null,null,{"$f":"企業情報!AQ18","v":false},{"$f":"IF(O13,\"●\",\"\")","v":""},"Retail",null,null,null,null,{"$f":"企業情報!AR18","v":false},{"$f":"IF(V13,\"●\",\"\")","v":""},"Trading",null,null,null,null,null,{"$f":"企業情報!AS18","v":false},{"$f":"IF(AD13,\"●\",\"\")","v":""},"Services / Other"]
[]
["Products"]
[{"$f":"企業情報!$AO$20","v":false},{"$f":"IF(A16,\"●\",\"\")","v":""},"Raw and processed meat",null,null,null,null,{"$f":"企業情報!$AP$20","v":false},{"$f":"IF(H16,\"●\",\"\")","v":""},"Dairy products / raw and processed eggs",null,null,null,null,{"$f":"企業情報!$AQ$20","v":false},{"$f":"IF(O16,\"●\",\"\")","v":""},"Raw and processed seafood",null,null,null,null,{"$f":"企業情報!$AR$20","v":false},{"$f":"IF(V16,\"●\",\"\")","v":""},"Raw and processed grains",null,null,null,null,null,{"$f":"企業情報!$AS$20","v":false},{"$f":"IF(AD16,\"●\",\"\")","v":""},"Raw and processed rice"]
[{"$f":"企業情報!$AO$21","v":false},{"$f":"IF(A17,\"●\",\"\")","v":""},"Raw and processed vegetables / fruits",null,null,null,null,{"$f":"企業情報!$AP$21","v":false},{"$f":"IF(H17,\"●\",\"\")","v":""},"Sugar and processed honey",null,null,null,null,{"$f":"企業情報!$AQ$21","v":false},{"$f":"IF(O17,\"●\",\"\")","v":""},"Coffee / Cocoa / Spices",null,null,null,null,{"$f":"企業情報!$AR$21","v":false},{"$f":"IF(V17,\"●\",\"\")","v":""},"Tea",null,null,null,null,null,{"$f":"企業情報!$AS$21","v":false},{"$f":"IF(AD17,\"●\",\"\")","v":""},"Seasoning"]
[{"$f":"企業情報!$AO$22","v":false},{"$f":"IF(A18,\"●\",\"\")","v":""},"Sake",null,null,null,null,{"$f":"企業情報!$AP$22","v":false},{"$f":"IF(H18,\"●\",\"\")","v":""},"Shochu",null,null,null,null,{"$f":"企業情報!$AQ$22","v":false},{"$f":"IF(O18,\"●\",\"\")","v":""},"Other alcoholic beverages",null,null,null,null,{"$f":"企業情報!$AR$22","v":false},{"$f":"IF(V18,\"●\",\"\")","v":""},"Non-alcoholic beverages",null,null,null,null,null,{"$f":"企業情報!$AS$22","v":false},{"$f":"IF(AD18,\"●\",\"\")","v":""},"Animal fat oil / Vegetable oil"]
[{"$f":"企業情報!$AO$23","v":false},{"$f":"IF(A19,\"●\",\"\")","v":""},"Other products\n(Please specify)",null,null,null,null,null,null,null,null,null,null,null,null,null,null,null,null,null,null,null,null,null,null,null,null,null,null,null,null,null,null,null,null,null,null,null,null,{"$f":"企業情報!G24","v":0}]
[]
["Purpose of participation"]
[{"$f":"企業情報!$AO$25","v":false},{"$f":"IF(A22,\"●\",\"\")","v":""},"Breaking into overseas markets",null,null,null,null,null,null,{"$f":"企業情報!$AP$25","v":false},{"$f":"IF(J22,\"●\",\"\")","v":""},"Further expansion / diversification of overseas business",null,null,null,null,null,null,{"$f":"企業情報!$AQ$25","v":false},{"$f":"IF(S22,\"●\",\"\")","v":""},"Finding local agency",null,null,null,null,null,null,{"$f":"企業情報!$AR$25","v":false},{"$f":"IF(AB22,\"●\",\"\")","v":""},"Other"]
[]
["Company PR (principles, etc., 200 words or less)"]
[{"$f":"企業情報!A32","v":0},null,null,null,null,null,null,null,null,null,null,null,null,null,null,null,null,null,null,null,null,null,null,null,null,null,null,null,null,null,null,null,null,null,null,null,null,null,null,{"$f":"企業情報!A29","v":0}]
["Area in which you have your credentials (e.g. ISO, HACCP, GAP)"]
[{"$f":"企業情報!AO33","v":false},{"$f":"IF(A27,\"●\",\"\")","v":""},"ISO9001",null,null,null,{"$f":"企業情報!AP33","v":false},{"$f":"IF(G27,\"●\",\"\")","v":""},"ISO22000",null,null,null,null,{"$f":"企業情報!AQ33","v":false},{"$f":"IF(N27,\"●\",\"\")","v":""},"EU-HACCP",null,null,null,null,{"$f":"企業情報!AR33","v":false},{"$f":"IF(U27,\"●\",\"\")","v":""},"U.S.-HACCP",null,null,null,null,null,{"$f":"企業情報!AS33","v":false},{"$f":"IF(AC27,\"●\",\"\")","v":""},"other kinds of HACCP"]
[{"$f":"企業情報!AO34","v":false},{"$f":"IF(A28,\"●\",\"\")","v":""},"FSSC22000",null,null,null,{"$f":"企業情報!AP34","v":false},{"$f":"IF(G28,\"●\",\"\")","v":""},"FSMA",null,null,null,{"$f":"企業情報!AQ34","v":false},{"$f":"IF(M28,\"●\",\"\")","v":""},"BRC",null,null,null,{"$f":"企業情報!AR34","v":false},{"$f":"IF(S28,\"●\",\"\")","v":""},"JFS-C",null,null,null,{"$f":"企業情報!AS34","v":false},{"$f":"IF(Y28,\"●\",\"\")","v":""},"GAP",null,null,null,{"$f":"企業情報!AT34","v":false},{"$f":"IF(AE28,\"●\",\"\")","v":""},"Other"]
["If you have chosen \"Other\", please specify."]
[{"$f":"企業情報!$Z$36","v":0},null,null,null,null,null,null,null,null,null,null,null,null,null,null,null,null,null,null,null,null,null,null,null,null,null,null,null,null,null,null,null,null,null,null,null,null,null,null,{"$f":"企業情報!K36","v":0}]
["Approaches to raw material procurement, manufacturing process and certifications, etc."]
[{"$f":"企業情報!A41","v":0},null,null,null,null,null,null,null,null,null,null,null,null,null,null,null,null,null,null,null,null,null,null,null,null,null,null,null,null,null,null,null,null,null,null,null,null,null,null,{"$f":"企業情報!A39","v":0}]
[]
["Export experience"]
[{"$f":"企業情報!$AO$42","v":false},{"$f":"IF(A35,\"●\",\"\")","v":""},"（a）.Experience of direct export within one year."]
[{"$f":"企業情報!$AP$42","v":false},{"$f":"IF(A36,\"●\",\"\")","v":""},"（b）.Experience of indirect export through an export partner(ex.Japanese trading company) within one year."]
[{"$f":"企業情報!$AQ$42","v":false},{"$f":"IF(A37,\"●\",\"\")","v":""},"（c）.No export experience"]
[null,{"$f":"IF(A38,\"●\",\"\")","v":""}]
[null,{"$f":"IF(A39,\"●\",\"\")","v":""}]
["Exporting countries"]
[{"$f":"企業情報!A48","v":0},null,null,null,null,null,null,null,null,null,null,null,null,null,null,null,null,null,null,null,null,null,null,null,null,null,null,null,null,null,null,null,null,null,null,null,null,null,null,{"$f":"企業情報!A46","v":0}]
["Do you have an agent / warehouse / designated trading firm as a partner? (Y/N)"]
[{"$f":"企業情報!$AO$48","v":2},{"$f":"IF(A43=1,\"●\",\"\")","v":""},"Yes",null,null,null,null,null,null,null,null,null,null,null,null,null,null,null,null,{"$f":"企業情報!$AO$48","v":2},{"$f":"IF(T43=2,\"●\",\"　\")","v":"●"},"No"]
["Company name of agent /    designated trading firm",null,null,null,null,null,null,null,null,null,null,null,{"$f":"企業情報!$M$53","v":0},null,null,null,null,null,null,null,null,null,null,null,null,null,null,null,null,null,null,null,null,null,null,null,null,null,null,{"$f":"企業情報!M51","v":0}]
["Will you have a companion from an agent / designated trading firm on the day of business meeting? (Y/N)"]
[{"$f":"企業情報!$AO$53","v":2},{"$f":"IF(A46=1,\"●\",\"\")","v":""},"Yes",null,null,null,null,null,null,null,null,null,null,null,null,null,null,null,null,{"$f":"企業情報!$AO$53","v":2},{"$f":"IF(T46=2,\"●\",\"　\")","v":"●"},"No"]
[]
["Languages available for business"]
[{"$f":"企業情報!AO55","v":false},{"$f":"IF(A49,\"●\",\"\")","v":""},"Japanese",null,null,null,null,null,null,null,{"$f":"企業情報!AP55","v":false},{"$f":"IF(K49,\"●\",\"\")","v":""},"English",null,null,null,null,null,null,null,{"$f":"企業情報!AQ55","v":false},{"$f":"IF(U49,\"●\",\"\")","v":""},"Other (Please specify)",null,null,null,null,null,null,null,null,null,null,null,null,null,null,null,null,{"$f":"企業情報!X57","v":0}]
["Company organization for export"]
[{"$f":"企業情報!$AO$56","v":1},{"$f":"IF(A51=1,\"●\",\"\")","v":"●"},"we have full-time person in charge",null,null,null,null,null,null,null,{"$f":"企業情報!$AO$56","v":1},{"$f":"IF(K51=2,\"●\",\"\")","v":""},"we have a person in charge who is not a full-time",null,null,null,null,null,null,null,{"$f":"企業情報!$AO$56","v":1},{"$f":"IF(U51=3,\"●\",\"\")","v":""},"we have the plan to have a full-time person in charge ",null,null,null,null,null,null,null,{"$f":"企業情報!$AO$56","v":1},{"$f":"IF(AE51=4,\"●\",\"\")","v":""},"we do not have the plan to have a full-time person in charge"]
["Response to a request for sales promotion"]
[{"$f":"企業情報!$AO$61","v":1},{"$f":"IF(A53=1,\"●\",\"\")","v":"●"},"Ready to respond",null,null,null,null,null,null,null,{"$f":"企業情報!$AO$61","v":1},{"$f":"IF(K53=2,\"●\",\"\")","v":""},"Depends on the requirements ",null,null,null,null,null,null,null,{"$f":"企業情報!$AO$61","v":1},{"$f":"IF(U53=3,\"●\",\"\")","v":""},"Not ready to respond"]

{"sheet":"Product_1_EN","index":6,"n_rows":74,"n_cols":40,"rows_kept":74,"cut":false,"hidden":false,"merged":[[1,5,1,7],[1,8,1,27],[46,34,46,38],[48,0,48,38],[49,0,49,38],[47,2,47,7],[47,18,47,23],[47,10,47,15],[47,26,47,31],[47,34,47,38],[46,2,46,7],[46,10,46,15],[46,18,46,23],[46,26,46,31],[15,37,15,38],[12,30,12,36],[32,27,32,38],[7,0,32,25],[1,34,1,38],[5,0,6,25],[5,27,6,38],[10,30,10,36],[10,37,10,38],[9,30,9,36],[0,0,0,38],[73,39,76,39],[5,39,6,39],[67,26,67,38],[72,0,72,38],[73,0,76,38],[65,2,65,11],[63,2,63,11],[68,2,68,8],[34,39,37,39],[40,39,43,39],[3,0,3,38],[4,0,4,25],[18,30,18,36],[40,0,43,38],[8,27,8,29],[8,37,8,38],[9,27,9,29],[18,27,18,29],[1,0,1,4],[16,27,16,29],[29,27,29,38],[30,27,30,38],[31,27,31,38],[65,53,65,67],[63,14,63,26],[63,29,63,38],[64,14,64,26],[52,2,52,10],[63,53,63,67],[64,53,64,67],[57,33,57,38],[64,2,64,11],[61,0,61,12],[59,15,59,25],[20,27,20,36],[22,32,22,38],[8,30,8,36],[9,37,9,38],[10,27,10,29],[1,28,1,33],[11,27,11,29],[11,30,11,36],[11,37,11,38],[12,27,12,29],[14,27,14,29],[14,30,14,36],[14,37,14,38],[12,37,12,38],[28,27,28,36],[25,27,25,38],[15,27,15,29],[15,30,15,36],[53,13,53,16],[52,33,52,38],[57,2,57,6],[57,9,57,15],[28,37,28,38],[57,18,57,23],[57,26,57,30],[16,30,16,36],[16,37,16,38],[17,27,17,29],[17,30,17,36],[17,37,17,38],[21,27,21,38],[34,0,37,38],[24,27,24,38],[18,37,18,38],[20,37,20,38],[22,27,22,28],[22,29,22,31],[19,27,19,38],[68,39,68,51],[69,18,69,24],[69,26,69,38],[70,26,70,38],[68,26,68,38],[64,27,64,37],[23,27,23,38],[53,31,53,33],[53,19,53,22],[53,25,53,28],[67,18,67,24],[59,28,59,37],[68,22,68,24],[53,36,53,38],[52,13,52,21],[52,24,52,30],[68,11,68,17],[68,18,68,20],[65,12,65,38],[39,0,39,38],[59,2,59,12],[53,2,53,10],[26,27,26,36],[26,37,26,38]]}
[" Business Meeting\nApplication Form"]
["No.",null,null,null,null,{"$f":"企業情報!P2","v":0},null,null,{"$f":"企業情報!$Y$6","v":0},null,null,null,null,null,null,null,null,null,null,null,null,null,null,null,null,null,null,null,"Product No.",null,null,null,null,null,{"$f":"商品情報_1_JP!$AG$2","v":1},null,null,null,null,"日本語"]
[]
[]
["Product Name",null,null,null,null,null,null,null,null,null,null,null,null,null,null,null,null,null,null,null,null,null,null,null,null,null,null,"Description"]
[{"$f":"商品情報_1_JP!$A$10","v":0},null,null,null,null,null,null,null,null,null,null,null,null,null,null,null,null,null,null,null,null,null,null,null,null,null,null,{"$f":"IF(ISNA(VLOOKUP(商品情報_1_JP!AB8,品種・品目,2,FALSE)),\"\",VLOOKUP(商品情報_1_JP!AB8,品種・品目,2,FALSE))","v":0},null,null,null,null,null,null,null,null,null,null,null,{"$f":"商品情報_1_JP!A8","v":0}]
[]
[null,null,null,null,null,null,null,null,null,null,null,null,null,null,null,null,null,null,null,null,null,null,null,null,null,null,null,"Size per product"]
[null,null,null,null,null,null,null,null,null,null,null,null,null,null,null,null,null,null,null,null,null,null,null,null,null,null,null,"Width",null,null,{"$f":"商品情報_1_JP!$AE$12","v":0},null,null,null,null,null,null,{"$f":"商品情報_1_JP!$AL$12","v":"cm"}]
[null,null,null,null,null,null,null,null,null,null,null,null,null,null,null,null,null,null,null,null,null,null,null,null,null,null,null,"Depth",null,null,{"$f":"商品情報_1_JP!$AE$13","v":0},null,null,null,null,null,null,{"$f":"商品情報_1_JP!$AL$13","v":"cm"}]
[null,null,null,null,null,null,null,null,null,null,null,null,null,null,null,null,null,null,null,null,null,null,null,null,null,null,null,"Height",null,null,{"$f":"商品情報_1_JP!$AE$14","v":0},null,null,null,null,null,null,{"$f":"商品情報_1_JP!$AL$14","v":"cm"}]
[null,null,null,null,null,null,null,null,null,null,null,null,null,null,null,null,null,null,null,null,null,null,null,null,null,null,null,"Weight",null,null,{"$f":"商品情報_1_JP!$AE$15","v":0},null,null,null,null,null,null,{"$f":"商品情報_1_JP!$AL$15","v":"g"}]
[null,null,null,null,null,null,null,null,null,null,null,null,null,null,null,null,null,null,null,null,null,null,null,null,null,null,null,"Capacity",null,null,{"$f":"商品情報_1_JP!$AE$16","v":0},null,null,null,null,null,null,{"$f":"商品情報_1_JP!$AL$16","v":"g"}]
[null,null,null,null,null,null,null,null,null,null,null,null,null,null,null,null,null,null,null,null,null,null,null,null,null,null,null,"Size per case"]
[null,null,null,null,null,null,null,null,null,null,null,null,null,null,null,null,null,null,null,null,null,null,null,null,null,null,null,"Width",null,null,{"$f":"商品情報_1_JP!$AE$18","v":0},null,null,null,null,null,null,{"$f":"商品情報_1_JP!$AL$18","v":"cm"}]
[null,null,null,null,null,null,null,null,null,null,null,null,null,null,null,null,null,null,null,null,null,null,null,null,null,null,null,"Depth",null,null,{"$f":"商品情報_1_JP!$AE$19","v":0},null,null,null,null,null,null,{"$f":"商品情報_1_JP!$AL$19","v":"cm"}]
[null,null,null,null,null,null,null,null,null,null,null,null,null,null,null,null,null,null,null,null,null,null,null,null,null,null,null,"Height",null,null,{"$f":"商品情報_1_JP!$AE$20","v":0},null,null,null,null,null,null,{"$f":"商品情報_1_JP!$AL$20","v":"cm"}]
[null,null,null,null,null,null,null,null,null,null,null,null,null,null,null,null,null,null,null,null,null,null,null,null,null,null,null,"Weight",null,null,{"$f":"商品情報_1_JP!$AE$21","v":0},null,null,null,null,null,null,{"$f":"商品情報_1_JP!$AL$21","v":"kg"}]
[null,null,null,null,null,null,null,null,null,null,null,null,null,null,null,null,null,null,null,null,null,null,null,null,null,null,null,"Quantity per case",null,null,{"$f":"商品情報_1_JP!$AE$22","v":0},null,null,null,null,null,null,{"$f":"IF(ISNA(VLOOKUP(商品情報_1_JP!AL22,ケース再追加,2,FALSE)),\"\",VLOOKUP(商品情報_1_JP!AL22,ケース再追加,2,FALSE))","v":"box"}]
[null,null,null,null,null,null,null,null,null,null,null,null,null,null,null,null,null,null,null,null,null,null,null,null,null,null,null,"Minimum lot for order"]
[null,null,null,null,null,null,null,null,null,null,null,null,null,null,null,null,null,null,null,null,null,null,null,null,null,null,null,{"$f":"商品情報_1_JP!$AB$24","v":0},null,null,null,null,null,null,null,null,null,{"$f":"IF(ISNA(VLOOKUP(商品情報_1_JP!AL24,ロット追加,2,FALSE)),\"\",VLOOKUP(商品情報_1_JP!AL24,ロット追加,2,FALSE))","v":"case"}]
[null,null,null,null,null,null,null,null,null,null,null,null,null,null,null,null,null,null,null,null,null,null,null,null,null,null,null,"Expiration date"]
[null,null,null,null,null,null,null,null,null,null,null,null,null,null,null,null,null,null,null,null,null,null,null,null,null,null,null,{"$f":"商品情報_1_JP!AH26","v":0},null,{"$f":"IF(ISNA(VLOOKUP(商品情報_1_JP!AK26,賞味期限_単位,2,FALSE)),\"\",VLOOKUP(商品情報_1_JP!AK26,賞味期限_単位,2,FALSE))","v":""},null,null,{"$f":"IF(ISNA(VLOOKUP(商品情報_1_JP!AF26,賞味期限_新,2,FALSE)),\"\",VLOOKUP(商品情報_1_JP!AF26,賞味期限_新,2,FALSE))","v":0}]
[null,null,null,null,null,null,null,null,null,null,null,null,null,null,null,null,null,null,null,null,null,null,null,null,null,null,null,"Place of production/processing"]
[null,null,null,null,null,null,null,null,null,null,null,null,null,null,null,null,null,null,null,null,null,null,null,null,null,null,null,{"$f":"商品情報_1_JP!$AI$28","v":0},null,null,null,null,null,null,null,null,null,null,null,{"$f":"商品情報_1_JP!AC28","v":0}]
[null,null,null,null,null,null,null,null,null,null,null,null,null,null,null,null,null,null,null,null,null,null,null,null,null,null,null,"Percentage of ingredients produced in Japan (weight-based)"]
[null,null,null,null,null,null,null,null,null,null,null,null,null,null,null,null,null,null,null,null,null,null,null,null,null,null,null,{"$f":"商品情報_1_JP!$AB$30","v":0},null,null,null,null,null,null,null,null,null,"%"]
[null,null,null,null,null,null,null,null,null,null,null,null,null,null,null,null,null,null,null,null,null,null,null,null,null,null,null,"Retail price in Japan (yen) *excluding tax"]
[null,null,null,null,null,null,null,null,null,null,null,null,null,null,null,null,null,null,null,null,null,null,null,null,null,null,null,{"$f":"商品情報_1_JP!$AB$32","v":0},null,null,null,null,null,null,null,null,null,"JPY"]
[null,null,null,null,null,null,null,null,null,null,null,null,null,null,null,null,null,null,null,null,null,null,null,null,null,null,null,"JAN code（EAN code）"]
[null,null,null,null,null,null,null,null,null,null,null,null,null,null,null,null,null,null,null,null,null,null,null,null,null,null,null,{"$f":"商品情報_1_JP!$AB$34","v":0}]
[null,null,null,null,null,null,null,null,null,null,null,null,null,null,null,null,null,null,null,null,null,null,null,null,null,null,null,"HS code"]
[null,null,null,null,null,null,null,null,null,null,null,null,null,null,null,null,null,null,null,null,null,null,null,null,null,null,null,{"$f":"商品情報_1_JP!$AB$36","v":0}]
["Ingredients & additives "]
[{"$f":"商品情報_1_JP!$A$44","v":0},null,null,null,null,null,null,null,null,null,null,null,null,null,null,null,null,null,null,null,null,null,null,null,null,null,null,null,null,null,null,null,null,null,null,null,null,null,null,{"$f":"商品情報_1_JP!A41","v":0}]
[]
[]
[]
[]
["Comments on product features, recipes using the product, awards,popularity at overseas food fairs and in importing countries."]
[{"$f":"商品情報_1_JP!$A$51","v":0},null,null,null,null,null,null,null,null,null,null,null,null,null,null,null,null,null,null,null,null,null,null,null,null,null,null,null,null,null,null,null,null,null,null,null,null,null,null,{"$f":"商品情報_1_JP!A48","v":0}]
[]
[]
[]
[]
["Certifications of the product"]
[{"$f":"商品情報_1_JP!$AO$55","v":false},{"$f":"IF(A47,\"●\",\"\")","v":""},"Organic",null,null,null,null,null,{"$f":"商品情報_1_JP!$AP$55","v":false},{"$f":"IF(I47,\"●\",\"\")","v":""},"Non-GMO Project",null,null,null,null,null,{"$f":"商品情報_1_JP!$AQ$55","v":false},{"$f":"IF(Q47,\"●\",\"\")","v":""},"GFCO",null,null,null,null,null,{"$f":"商品情報_1_JP!$AR$55","v":false},{"$f":"IF(Y47,\"●\",\"\")","v":""},"GFCP",null,null,null,null,null,{"$f":"商品情報_1_JP!$AS$55","v":false},{"$f":"IF(AG47,\"●\",\"\")","v":""},"MSC"]
[{"$f":"商品情報_1_JP!$AO$56","v":false},{"$f":"IF(A48,\"●\",\"\")","v":""},"ASC",null,null,null,null,null,{"$f":"商品情報_1_JP!$AP$56","v":false},{"$f":"IF(I48,\"●\",\"\")","v":""},"MEL",null,null,null,null,null,{"$f":"商品情報_1_JP!$AQ$56","v":false},{"$f":"IF(Q48,\"●\",\"\")","v":""},"AEL",null,null,null,null,null,{"$f":"商品情報_1_JP!$AR$56","v":false},{"$f":"IF(Y48,\"●\",\"\")","v":""},"Halal",null,null,null,null,null,{"$f":"商品情報_1_JP!$AS$56","v":false},{"$f":"IF(AG48,\"●\",\"\")","v":""},"Other"]
["If you have chosen \"Other\", please specify."]
[{"$f":"商品情報_1_JP!$Z$57","v":0},null,null,null,null,null,null,null,null,null,null,null,null,null,null,null,null,null,null,null,null,null,null,null,null,null,null,null,null,null,null,null,null,null,null,null,null,null,null,{"$f":"商品情報_1_JP!K57","v":0}]
[]
["Major customers"]
[{"$f":"商品情報_1_JP!$AO$61","v":false},{"$f":"IF(A53,\"●\",\"\")","v":""},"Professional use",null,null,null,null,null,null,null,null,{"$f":"商品情報_1_JP!$AP$61","v":false},{"$f":"IF(L53,\"●\",\"\")","v":""},"Hotels",null,null,null,null,null,null,null,null,{"$f":"商品情報_1_JP!$AQ$61","v":false},{"$f":"IF(W53,\"●\",\"\")","v":""},"Restaurants",null,null,null,null,null,null,{"$f":"商品情報_1_JP!$AR$61","v":false},{"$f":"IF(AF53,\"●\",\"\")","v":""},"Food manufacturers"]
[{"$f":"商品情報_1_JP!$AO$62","v":false},{"$f":"IF(A54,\"●\",\"\")","v":""},"Household use",null,null,null,null,null,null,null,null,{"$f":"商品情報_1_JP!$AP$62","v":false},{"$f":"IF(L54,\"●\",\"\")","v":""},"Direct sales",null,null,null,{"$f":"商品情報_1_JP!$AQ$62","v":false},{"$f":"IF(R54,\"●\",\"\")","v":""},"Wholesale",null,null,null,{"$f":"商品情報_1_JP!$AR$62","v":false},{"$f":"IF(X54,\"●\",\"\")","v":""},"Department stores",null,null,null,{"$f":"商品情報_1_JP!$AS$62","v":false},{"$f":"IF(AD54,\"●\",\"\")","v":""},"Super-markets",null,null,{"$f":"商品情報_1_JP!$AT$62","v":false},{"$f":"IF(AI54,\"●\",\"\")","v":""},"Food shops"]
[]
["Business target: Age group"]
[]
[{"$f":"商品情報_1_JP!$AO$68","v":false},{"$f":"IF(A58,\"●\",\"\")","v":""},"Infants/\nChildren",null,null,null,null,{"$f":"商品情報_1_JP!$AP$68","v":false},{"$f":"IF(H58,\"●\",\"\")","v":""},"Late 10s-20s",null,null,null,null,null,null,{"$f":"商品情報_1_JP!$AQ$68","v":false},{"$f":"IF(Q58,\"●\",\"\")","v":""},"30s-40s",null,null,null,null,null,{"$f":"商品情報_1_JP!$AR$68","v":false},{"$f":"IF(Y58,\"●\",\"\")","v":""},"50s and over",null,null,null,null,{"$f":"商品情報_1_JP!$AS$68","v":false},{"$f":"IF(AF58,\"●\",\"\")","v":""},"All ages"]
["Business target: Income group"]
[{"$f":"商品情報_1_JP!AO66","v":false},{"$f":"IF(A60,\"●\",\"\")","v":""},"Upper class",null,null,null,null,null,null,null,null,null,null,{"$f":"商品情報_1_JP!AP66","v":false},{"$f":"IF(N60,\"●\",\"\")","v":""},"Middle class",null,null,null,null,null,null,null,null,null,null,{"$f":"商品情報_1_JP!AQ66","v":false},{"$f":"IF(AA60,\"●\",\"\")","v":""},"Mass market"]
["Business target: Gender"]
[{"$f":"IF(ISNA(VLOOKUP(商品情報_1_JP!$X$66,性別,2,FALSE)),\"\",VLOOKUP(商品情報_1_JP!$X$66,性別,2,FALSE))","v":""}]
["Storage condition"]
[{"$f":"商品情報_1_JP!$AO$71","v":false},{"$f":"IF(A64,\"●\",\"\")","v":""},"Store at room temperature, away from heat and humidity.",null,null,null,null,null,null,null,null,null,{"$f":"商品情報_1_JP!$AP$71","v":false},{"$f":"IF(M64,\"●\",\"\")","v":""},"Store at room temperature, away from direct sunlight.",null,null,null,null,null,null,null,null,null,null,null,null,{"$f":"商品情報_1_JP!$AQ$71","v":false},{"$f":"IF(AB64,\"●\",\"\")","v":""},"Store in cool, dark place away from direct sunlight or heat."]
[{"$f":"商品情報_1_JP!$AO$72","v":false},{"$f":"IF(A65,\"●\",\"\")","v":""},"Store in dry place.",null,null,null,null,null,null,null,null,null,{"$f":"商品情報_1_JP!$AP$72","v":false},{"$f":"IF(M65,\"●\",\"\")","v":""},"Store at the following temperature.",null,null,null,null,null,null,null,null,null,null,null,null,{"$f":"商品情報_1_JP!$T$72","v":0},null,null,null,null,null,null,null,null,null,null,"℃"]
[{"$f":"商品情報_1_JP!$AO$73","v":false},{"$f":"IF(A66,\"●\",\"\")","v":""},"Other (please specify)",null,null,null,null,null,null,null,null,null,null,null,null,null,null,null,null,null,null,null,null,null,null,null,null,null,null,null,null,null,null,null,null,null,null,null,null,{"$f":"商品情報_1_JP!G73","v":0}]
[]
["Sales season",null,null,null,null,null,null,null,null,null,null,null,null,null,null,null,null,null,"（month)",null,null,null,null,null,null,null,"Labeling in foreign languages for shipment"]
[{"$f":"商品情報_1_JP!$AO$76","v":false},{"$f":"IF(A69,\"●\",\"\")","v":""},"We can make shipments during all seasons.",null,null,null,null,null,null,{"$f":"商品情報_1_JP!$AP$76","v":false},{"$f":"IF(J69,\"●\",\"\")","v":""},"We can make shipments during the following term.",null,null,null,null,null,null,{"$f":"商品情報_1_JP!$P$76","v":0},null,null,"~",{"$f":"商品情報_1_JP!$U$76","v":0},null,null,null,{"$f":"IF(ISNA(VLOOKUP(商品情報_1_JP!AA76,ラベル,2,FALSE)),\"\",VLOOKUP(商品情報_1_JP!AA76,ラベル,2,FALSE))","v":0}]
[null,null,null,null,null,null,null,null,null,null,null,null,null,null,null,null,null,null,null,null,null,null,null,null,null,null,"OEM"]
[null,null,null,null,null,null,null,null,null,null,null,null,null,null,null,null,null,null,null,null,null,null,null,null,null,null,{"$f":"IF(ISNA(VLOOKUP(商品情報_1_JP!AH76,OEM,2,FALSE)),\"\",VLOOKUP(商品情報_1_JP!AH76,OEM,2,FALSE))","v":0}]
[null,null,null,null,null,null,null,null,null,null,null,null,null,null,null,null,null,null,null,null,null,null,null,null,null,null,null,null,null,null,null,null,null,null,null,null,null,null,null,{"$f":"IF(ISNA(VLOOKUP(商品情報_1_JP!AN77,ラベル,2,FALSE)),\"\",VLOOKUP(商品情報_1_JP!AN77,ラベル,2,FALSE))","v":""}]
["Recipes/ways to prepare or consume the product/messages/request to buyers"]
[{"$f":"商品情報_1_JP!$A$83","v":0},null,null,null,null,null,null,null,null,null,null,null,null,null,null,null,null,null,null,null,null,null,null,null,null,null,null,null,null,null,null,null,null,null,null,null,null,null,null,{"$f":"商品情報_1_JP!A80","v":0}]

{"sheet":"Product_2_EN","index":7,"n_rows":73,"n_cols":40,"rows_kept":73,"cut":false,"hidden":false,"merged":[[0,0,0,38],[71,0,71,38],[72,0,75,38],[72,39,75,39],[64,2,64,11],[64,12,64,38],[60,0,60,12],[62,2,62,11],[62,14,62,26],[62,29,62,38],[56,2,56,6],[56,9,56,15],[56,18,56,23],[56,26,56,30],[56,33,56,38],[58,2,58,12],[58,15,58,25],[58,28,58,37],[52,2,52,10],[52,13,52,16],[52,19,52,22],[52,25,52,28],[52,31,52,33],[52,36,52,38],[64,53,64,67],[66,18,66,24],[66,26,66,38],[67,2,67,8],[67,11,67,17],[67,18,67,20],[67,22,67,24],[67,26,67,38],[62,53,62,67],[63,2,63,11],[63,14,63,26],[63,27,63,37],[63,53,63,67],[34,0,37,38],[34,39,37,39],[39,0,39,38],[40,0,43,38],[40,39,43,39],[51,2,51,10],[51,13,51,21],[51,24,51,30],[51,33,51,38],[47,2,47,7],[47,10,47,15],[47,18,47,23],[47,26,47,31],[47,34,47,38],[48,0,48,38],[49,0,49,38],[28,27,28,36],[28,37,28,38],[19,27,19,38],[20,27,20,36],[20,37,20,38],[21,27,21,38],[22,27,22,28],[22,29,22,31],[22,32,22,38],[15,37,15,38],[16,27,16,29],[16,30,16,36],[16,37,16,38],[23,27,23,38],[24,27,24,38],[25,27,25,38],[26,27,26,36],[26,37,26,38],[5,39,6,39],[8,27,8,29],[8,30,8,36],[8,37,8,38],[9,27,9,29],[9,30,9,36],[12,27,12,29],[12,30,12,36],[12,37,12,38],[9,37,9,38],[10,27,10,29],[10,30,10,36],[10,37,10,38],[11,27,11,29],[11,30,11,36],[11,37,11,38],[1,0,1,4],[1,5,1,7],[1,8,1,27],[1,28,1,33],[1,34,1,38],[3,0,3,38],[4,0,4,25],[5,0,6,25],[5,27,6,38],[68,18,68,24],[68,26,68,38],[69,26,69,38],[29,27,29,38],[30,27,30,38],[31,27,31,38],[32,27,32,38],[7,0,32,25],[46,2,46,7],[46,10,46,15],[46,18,46,23],[46,26,46,31],[46,34,46,38],[14,27,14,29],[14,30,14,36],[14,37,14,38],[17,27,17,29],[17,30,17,36],[17,37,17,38],[18,27,18,29],[18,30,18,36],[18,37,18,38],[15,27,15,29],[15,30,15,36]]}
[" Business Meeting\nApplication Form"]
["No.",null,null,null,null,{"$f":"企業情報!P2","v":0},null,null,{"$f":"企業情報!$Y$6","v":0},null,null,null,null,null,null,null,null,null,null,null,null,null,null,null,null,null,null,null,"Product No.",null,null,null,null,null,{"$f":"商品情報_2_JP!$AG$2","v":2},null,null,null,null,"日本語"]
[]
[]
["Product Name",null,null,null,null,null,null,null,null,null,null,null,null,null,null,null,null,null,null,null,null,null,null,null,null,null,null,"Description"]
[{"$f":"商品情報_2_JP!$A$8","v":0},null,null,null,null,null,null,null,null,null,null,null,null,null,null,null,null,null,null,null,null,null,null,null,null,null,null,{"$f":"IF(ISNA(VLOOKUP(商品情報_2_JP!AB6,品種・品目,2,FALSE)),\"\",VLOOKUP(商品情報_2_JP!AB6,品種・品目,2,FALSE))","v":0},null,null,null,null,null,null,null,null,null,null,null,{"$f":"商品情報_2_JP!A6","v":0}]
[]
[null,null,null,null,null,null,null,null,null,null,null,null,null,null,null,null,null,null,null,null,null,null,null,null,null,null,null,"Size per product"]
[null,null,null,null,null,null,null,null,null,null,null,null,null,null,null,null,null,null,null,null,null,null,null,null,null,null,null,"Width",null,null,{"$f":"商品情報_2_JP!$AE$10","v":0},null,null,null,null,null,null,{"$f":"商品情報_2_JP!$AL$10","v":"▼"}]
[null,null,null,null,null,null,null,null,null,null,null,null,null,null,null,null,null,null,null,null,null,null,null,null,null,null,null,"Depth",null,null,{"$f":"商品情報_2_JP!$AE$11","v":0},null,null,null,null,null,null,{"$f":"商品情報_2_JP!$AL$11","v":"▼"}]
[null,null,null,null,null,null,null,null,null,null,null,null,null,null,null,null,null,null,null,null,null,null,null,null,null,null,null,"Height",null,null,{"$f":"商品情報_2_JP!$AE$12","v":0},null,null,null,null,null,null,{"$f":"商品情報_2_JP!$AL$12","v":"▼"}]
[null,null,null,null,null,null,null,null,null,null,null,null,null,null,null,null,null,null,null,null,null,null,null,null,null,null,null,"Weight",null,null,{"$f":"商品情報_2_JP!$AE$13","v":0},null,null,null,null,null,null,{"$f":"商品情報_2_JP!$AL$13","v":"▼"}]
[null,null,null,null,null,null,null,null,null,null,null,null,null,null,null,null,null,null,null,null,null,null,null,null,null,null,null,"Capacity",null,null,{"$f":"商品情報_2_JP!$AE$14","v":0},null,null,null,null,null,null,{"$f":"商品情報_2_JP!$AL$14","v":"▼"}]
[null,null,null,null,null,null,null,null,null,null,null,null,null,null,null,null,null,null,null,null,null,null,null,null,null,null,null,"Size per case"]
[null,null,null,null,null,null,null,null,null,null,null,null,null,null,null,null,null,null,null,null,null,null,null,null,null,null,null,"Width",null,null,{"$f":"商品情報_2_JP!$AE$16","v":0},null,null,null,null,null,null,{"$f":"商品情報_2_JP!$AL$16","v":"▼"}]
[null,null,null,null,null,null,null,null,null,null,null,null,null,null,null,null,null,null,null,null,null,null,null,null,null,null,null,"Depth",null,null,{"$f":"商品情報_2_JP!$AE$17","v":0},null,null,null,null,null,null,{"$f":"商品情報_2_JP!$AL$17","v":"▼"}]
[null,null,null,null,null,null,null,null,null,null,null,null,null,null,null,null,null,null,null,null,null,null,null,null,null,null,null,"Height",null,null,{"$f":"商品情報_2_JP!$AE$18","v":0},null,null,null,null,null,null,{"$f":"商品情報_2_JP!$AL$18","v":"▼"}]
[null,null,null,null,null,null,null,null,null,null,null,null,null,null,null,null,null,null,null,null,null,null,null,null,null,null,null,"Weight",null,null,{"$f":"商品情報_2_JP!$AE$19","v":0},null,null,null,null,null,null,{"$f":"商品情報_2_JP!$AL$19","v":"▼"}]
[null,null,null,null,null,null,null,null,null,null,null,null,null,null,null,null,null,null,null,null,null,null,null,null,null,null,null,"Quantity per case",null,null,{"$f":"商品情報_2_JP!$AE$20","v":0},null,null,null,null,null,null,{"$f":"IF(ISNA(VLOOKUP(商品情報_2_JP!AL20,ケース再追加,2,FALSE)),\"\",VLOOKUP(商品情報_2_JP!AL20,ケース再追加,2,FALSE))","v":""}]
[null,null,null,null,null,null,null,null,null,null,null,null,null,null,null,null,null,null,null,null,null,null,null,null,null,null,null,"Minimum lot for order"]
[null,null,null,null,null,null,null,null,null,null,null,null,null,null,null,null,null,null,null,null,null,null,null,null,null,null,null,{"$f":"商品情報_2_JP!$AB$22","v":0},null,null,null,null,null,null,null,null,null,{"$f":"IF(ISNA(VLOOKUP(商品情報_2_JP!AL22,ロット追加,2,FALSE)),\"\",VLOOKUP(商品情報_2_JP!AL22,ロット追加,2,FALSE))","v":""}]
[null,null,null,null,null,null,null,null,null,null,null,null,null,null,null,null,null,null,null,null,null,null,null,null,null,null,null,"Expiration date"]
[null,null,null,null,null,null,null,null,null,null,null,null,null,null,null,null,null,null,null,null,null,null,null,null,null,null,null,{"$f":"商品情報_2_JP!AH24","v":0},null,{"$f":"IF(ISNA(VLOOKUP(商品情報_2_JP!AK24,賞味期限_単位,2,FALSE)),\"\",VLOOKUP(商品情報_2_JP!AK24,賞味期限_単位,2,FALSE))","v":""},null,null,{"$f":"IF(ISNA(VLOOKUP(商品情報_2_JP!AF24,賞味期限_新,2,FALSE)),\"\",VLOOKUP(商品情報_2_JP!AF24,賞味期限_新,2,FALSE))","v":0}]
[null,null,null,null,null,null,null,null,null,null,null,null,null,null,null,null,null,null,null,null,null,null,null,null,null,null,null,"Place of production/processing"]
[null,null,null,null,null,null,null,null,null,null,null,null,null,null,null,null,null,null,null,null,null,null,null,null,null,null,null,{"$f":"商品情報_2_JP!$AI$26","v":0},null,null,null,null,null,null,null,null,null,null,null,{"$f":"商品情報_2_JP!AC26","v":0}]
[null,null,null,null,null,null,null,null,null,null,null,null,null,null,null,null,null,null,null,null,null,null,null,null,null,null,null,"Percentage of ingredients produced in Japan (weight-based)"]
[null,null,null,null,null,null,null,null,null,null,null,null,null,null,null,null,null,null,null,null,null,null,null,null,null,null,null,{"$f":"商品情報_2_JP!$AB$28","v":0},null,null,null,null,null,null,null,null,null,"%"]
[null,null,null,null,null,null,null,null,null,null,null,null,null,null,null,null,null,null,null,null,null,null,null,null,null,null,null,"Retail price in Japan (yen) *excluding tax"]
[null,null,null,null,null,null,null,null,null,null,null,null,null,null,null,null,null,null,null,null,null,null,null,null,null,null,null,{"$f":"商品情報_2_JP!$AB$30","v":0},null,null,null,null,null,null,null,null,null,"JPY"]
[null,null,null,null,null,null,null,null,null,null,null,null,null,null,null,null,null,null,null,null,null,null,null,null,null,null,null,"JANコード（半角数字のみ）（必須）"]
[null,null,null,null,null,null,null,null,null,null,null,null,null,null,null,null,null,null,null,null,null,null,null,null,null,null,null,{"$f":"商品情報_2_JP!$AB$32","v":0}]
[null,null,null,null,null,null,null,null,null,null,null,null,null,null,null,null,null,null,null,null,null,null,null,null,null,null,null,"HSコード（必須）"]
[null,null,null,null,null,null,null,null,null,null,null,null,null,null,null,null,null,null,null,null,null,null,null,null,null,null,null,{"$f":"商品情報_2_JP!$AB$34","v":0}]
["Ingredients & additives "]
[{"$f":"商品情報_2_JP!$A$41","v":0},null,null,null,null,null,null,null,null,null,null,null,null,null,null,null,null,null,null,null,null,null,null,null,null,null,null,null,null,null,null,null,null,null,null,null,null,null,null,{"$f":"商品情報_2_JP!A38","v":0}]
[]
[]
[]
[]
["Comments on product features, recipes using the product, awards,popularity at overseas food fairs and in importing countries."]
[{"$f":"商品情報_2_JP!$A$48","v":0},null,null,null,null,null,null,null,null,null,null,null,null,null,null,null,null,null,null,null,null,null,null,null,null,null,null,null,null,null,null,null,null,null,null,null,null,null,null,{"$f":"商品情報_2_JP!A45","v":0}]
[]
[]
[]
[]
["Certifications of the product"]
[{"$f":"商品情報_2_JP!$AO$52","v":false},{"$f":"IF(A47,\"●\",\"\")","v":""},"Organic",null,null,null,null,null,{"$f":"商品情報_2_JP!$AP$52","v":false},{"$f":"IF(I47,\"●\",\"\")","v":""},"Non-GMO Project",null,null,null,null,null,{"$f":"商品情報_2_JP!$AQ$52","v":false},{"$f":"IF(Q47,\"●\",\"\")","v":""},"GFCO",null,null,null,null,null,{"$f":"商品情報_2_JP!$AR$52","v":false},{"$f":"IF(Y47,\"●\",\"\")","v":""},"GFCP",null,null,null,null,null,{"$f":"商品情報_2_JP!$AS$52","v":false},{"$f":"IF(AG47,\"●\",\"\")","v":""},"MSC"]
[{"$f":"商品情報_2_JP!$AO$53","v":false},{"$f":"IF(A48,\"●\",\"\")","v":""},"ASC",null,null,null,null,null,{"$f":"商品情報_2_JP!$AP$53","v":false},{"$f":"IF(I48,\"●\",\"\")","v":""},"MEL",null,null,null,null,null,{"$f":"商品情報_2_JP!$AQ$53","v":false},{"$f":"IF(Q48,\"●\",\"\")","v":""},"AEL",null,null,null,null,null,{"$f":"商品情報_2_JP!$AR$53","v":false},{"$f":"IF(Y48,\"●\",\"\")","v":""},"Halal",null,null,null,null,null,{"$f":"商品情報_2_JP!$AS$53","v":false},{"$f":"IF(AG48,\"●\",\"\")","v":""},"Other"]
["If you have chosen \"Other\", please specify."]
[{"$f":"商品情報_2_JP!$Z$54","v":0},null,null,null,null,null,null,null,null,null,null,null,null,null,null,null,null,null,null,null,null,null,null,null,null,null,null,null,null,null,null,null,null,null,null,null,null,null,null,{"$f":"商品情報_2_JP!K54","v":0}]
["Major customers"]
[{"$f":"商品情報_2_JP!$AO$56","v":false},{"$f":"IF(A52,\"●\",\"\")","v":""},"Professional use",null,null,null,null,null,null,null,null,{"$f":"商品情報_2_JP!$AP$56","v":false},{"$f":"IF(L52,\"●\",\"\")","v":""},"Hotels",null,null,null,null,null,null,null,null,{"$f":"商品情報_2_JP!$AQ$56","v":false},{"$f":"IF(W52,\"●\",\"\")","v":""},"Restaurants",null,null,null,null,null,null,{"$f":"商品情報_2_JP!$AR$56","v":false},{"$f":"IF(AF52,\"●\",\"\")","v":""},"Food manufacturers"]
[{"$f":"商品情報_2_JP!$AO$57","v":false},{"$f":"IF(A53,\"●\",\"\")","v":""},"Household use",null,null,null,null,null,null,null,null,{"$f":"商品情報_2_JP!$AP$57","v":false},{"$f":"IF(L53,\"●\",\"\")","v":""},"Direct sales",null,null,null,{"$f":"商品情報_2_JP!$AQ$57","v":false},{"$f":"IF(R53,\"●\",\"\")","v":""},"Wholesale",null,null,null,{"$f":"商品情報_2_JP!$AR$57","v":false},{"$f":"IF(X53,\"●\",\"\")","v":""},"Dept. stores",null,null,null,{"$f":"商品情報_2_JP!$AS$57","v":false},{"$f":"IF(AD53,\"●\",\"\")","v":""},"Super-markets",null,null,{"$f":"商品情報_2_JP!$AT$57","v":false},{"$f":"IF(AI53,\"●\",\"\")","v":""},"Food shops"]
[]
["Business target: Age group"]
[]
[{"$f":"商品情報_2_JP!$AO$63","v":false},{"$f":"IF(A57,\"●\",\"\")","v":""},"Infants/\nChildren",null,null,null,null,{"$f":"商品情報_2_JP!$AP$63","v":false},{"$f":"IF(H57,\"●\",\"\")","v":""},"Late 10s-20s",null,null,null,null,null,null,{"$f":"商品情報_2_JP!$AQ$63","v":false},{"$f":"IF(Q57,\"●\",\"\")","v":""},"30s-40s",null,null,null,null,null,{"$f":"商品情報_2_JP!$AR$63","v":false},{"$f":"IF(Y57,\"●\",\"\")","v":""},"50s and over",null,null,null,null,{"$f":"商品情報_2_JP!$AS$63","v":false},{"$f":"IF(AF57,\"●\",\"\")","v":""},"All ages"]
["Business target: Income group"]
[{"$f":"商品情報_2_JP!AO61","v":false},{"$f":"IF(A59,\"●\",\"\")","v":""},"Upper class",null,null,null,null,null,null,null,null,null,null,{"$f":"商品情報_2_JP!AP61","v":false},{"$f":"IF(N59,\"●\",\"\")","v":""},"Middle class",null,null,null,null,null,null,null,null,null,null,{"$f":"商品情報_2_JP!AQ61","v":false},{"$f":"IF(AA59,\"●\",\"\")","v":""},"Mass market"]
["Business target: Gender"]
[{"$f":"IF(ISNA(VLOOKUP(商品情報_2_JP!$X$61,性別,2,FALSE)),\"\",VLOOKUP(商品情報_2_JP!$X$61,性別,2,FALSE))","v":""}]
["Storage condition"]
[{"$f":"商品情報_2_JP!$AO$66","v":false},{"$f":"IF(A63,\"●\",\"\")","v":""},"Please store at room temperature away from heat and humidity.",null,null,null,null,null,null,null,null,null,{"$f":"商品情報_2_JP!$AP$66","v":false},{"$f":"IF(M63,\"●\",\"\")","v":""},"Please store at room temperature away from direct sunlight.",null,null,null,null,null,null,null,null,null,null,null,null,{"$f":"商品情報_2_JP!$AQ$66","v":false},{"$f":"IF(AB63,\"●\",\"\")","v":""},"Please store in a cool, dark place away from direct sunlight or heat."]
[{"$f":"商品情報_2_JP!$AO$67","v":false},{"$f":"IF(A64,\"●\",\"\")","v":""},"Please store in a dry place.",null,null,null,null,null,null,null,null,null,{"$f":"商品情報_2_JP!$AP$67","v":false},{"$f":"IF(M64,\"●\",\"\")","v":""},"Please store at the following temperature.",null,null,null,null,null,null,null,null,null,null,null,null,{"$f":"商品情報_2_JP!$T$67","v":0},null,null,null,null,null,null,null,null,null,null,"℃"]
[{"$f":"商品情報_2_JP!$AO$68","v":false},{"$f":"IF(A65,\"●\",\"\")","v":""},"Other (Please specify.)",null,null,null,null,null,null,null,null,null,null,null,null,null,null,null,null,null,null,null,null,null,null,null,null,null,null,null,null,null,null,null,null,null,null,null,null,{"$f":"商品情報_2_JP!G60","v":0}]
[]
["Sales season",null,null,null,null,null,null,null,null,null,null,null,null,null,null,null,null,null,"（month)",null,null,null,null,null,null,null,"Labeling in foreign languages for shipment"]
[{"$f":"商品情報_2_JP!$AO$71","v":false},{"$f":"IF(A68,\"●\",\"\")","v":""},"We can make shipments during all seasons.",null,null,null,null,null,null,{"$f":"商品情報_2_JP!$AP$71","v":false},{"$f":"IF(J68,\"●\",\"\")","v":""},"We can make shipments during the following term.",null,null,null,null,null,null,{"$f":"商品情報_2_JP!$P$71","v":0},null,null,"~",{"$f":"商品情報_2_JP!$U$71","v":0},null,null,null,{"$f":"IF(ISNA(VLOOKUP(商品情報_2_JP!AA71,ラベル,2,FALSE)),\"\",VLOOKUP(商品情報_2_JP!AA71,ラベル,2,FALSE))","v":0}]
[null,null,null,null,null,null,null,null,null,null,null,null,null,null,null,null,null,null,null,null,null,null,null,null,null,null,"OEM"]
[null,null,null,null,null,null,null,null,null,null,null,null,null,null,null,null,null,null,null,null,null,null,null,null,null,null,{"$f":"IF(ISNA(VLOOKUP(商品情報_2_JP!AH71,OEM,2,FALSE)),\"\",VLOOKUP(商品情報_2_JP!AH71,OEM,2,FALSE))","v":0}]
[]
["Recipes/ways to prepare or consume the product/messages/request to buyers"]
[{"$f":"商品情報_2_JP!$A$78","v":0},null,null,null,null,null,null,null,null,null,null,null,null,null,null,null,null,null,null,null,null,null,null,null,null,null,null,null,null,null,null,null,null,null,null,null,null,null,null,{"$f":"商品情報_2_JP!A75","v":0}]

{"sheet":"Product_3_EN","index":8,"n_rows":74,"n_cols":40,"rows_kept":74,"cut":false,"hidden":false,"merged":[[5,39,6,39],[7,0,32,25],[8,27,8,29],[8,30,8,36],[8,37,8,38],[9,27,9,29],[0,0,0,38],[1,0,1,4],[1,5,1,7],[1,8,1,27],[1,28,1,33],[1,34,1,38],[9,30,9,36],[9,37,9,38],[10,27,10,29],[10,30,10,36],[10,37,10,38],[11,27,11,29],[11,30,11,36],[11,37,11,38],[3,0,3,38],[4,0,4,25],[5,0,6,25],[5,27,6,38],[15,27,15,29],[15,30,15,36],[15,37,15,38],[16,27,16,29],[16,30,16,36],[16,37,16,38],[12,27,12,29],[12,30,12,36],[12,37,12,38],[14,27,14,29],[14,30,14,36],[14,37,14,38],[19,27,19,38],[20,27,20,36],[20,37,20,38],[21,27,21,38],[22,27,22,28],[22,29,22,31],[22,32,22,38],[17,27,17,29],[17,30,17,36],[17,37,17,38],[18,27,18,29],[18,30,18,36],[18,37,18,38],[29,27,29,38],[30,27,30,38],[31,27,31,38],[32,27,32,38],[34,0,37,38],[34,39,37,39],[23,27,23,38],[24,27,24,38],[25,27,25,38],[26,27,26,36],[26,37,26,38],[28,27,28,36],[28,37,28,38],[47,2,47,7],[47,10,47,15],[47,18,47,23],[47,26,47,31],[47,34,47,38],[48,0,48,38],[39,0,39,38],[40,0,43,38],[40,39,43,39],[46,2,46,7],[46,10,46,15],[46,18,46,23],[46,26,46,31],[46,34,46,38],[53,36,53,38],[57,2,57,6],[57,9,57,15],[57,18,57,23],[57,26,57,30],[57,33,57,38],[49,0,49,38],[52,2,52,10],[52,13,52,21],[52,24,52,30],[52,33,52,38],[53,2,53,10],[53,13,53,16],[53,19,53,22],[53,25,53,28],[53,31,53,33],[63,53,63,67],[64,2,64,11],[64,14,64,26],[64,27,64,37],[64,53,64,67],[65,2,65,11],[65,12,65,38],[65,53,65,67],[59,2,59,12],[59,15,59,25],[59,28,59,37],[61,0,61,12],[63,2,63,11],[63,14,63,26],[63,29,63,38],[68,39,68,51],[69,18,69,24],[69,26,69,38],[70,26,70,38],[72,0,72,38],[73,0,76,38],[73,39,76,39],[67,18,67,24],[67,26,67,38],[68,2,68,8],[68,11,68,17],[68,18,68,20],[68,22,68,24],[68,26,68,38]]}
[" Business Meeting\nApplication Form"]
["No.",null,null,null,null,{"$f":"企業情報!P2","v":0},null,null,{"$f":"企業情報!$Y$6","v":0},null,null,null,null,null,null,null,null,null,null,null,null,null,null,null,null,null,null,null,"Product No.",null,null,null,null,null,{"$f":"商品情報_3_JP!$AG$2","v":3},null,null,null,null,"日本語"]
[]
[]
["Product Name",null,null,null,null,null,null,null,null,null,null,null,null,null,null,null,null,null,null,null,null,null,null,null,null,null,null,"Description"]
[{"$f":"商品情報_3_JP!$A$8","v":0},null,null,null,null,null,null,null,null,null,null,null,null,null,null,null,null,null,null,null,null,null,null,null,null,null,null,{"$f":"IF(ISNA(VLOOKUP(商品情報_3_JP!AB6,品種・品目,2,FALSE)),\"\",VLOOKUP(商品情報_3_JP!AB6,品種・品目,2,FALSE))","v":0},null,null,null,null,null,null,null,null,null,null,null,{"$f":"商品情報_3_JP!A6","v":0}]
[]
[null,null,null,null,null,null,null,null,null,null,null,null,null,null,null,null,null,null,null,null,null,null,null,null,null,null,null,"Size per product"]
[null,null,null,null,null,null,null,null,null,null,null,null,null,null,null,null,null,null,null,null,null,null,null,null,null,null,null,"Width",null,null,{"$f":"商品情報_3_JP!$AE$10","v":0},null,null,null,null,null,null,{"$f":"商品情報_3_JP!$AL$10","v":"▼"}]
[null,null,null,null,null,null,null,null,null,null,null,null,null,null,null,null,null,null,null,null,null,null,null,null,null,null,null,"Depth",null,null,{"$f":"商品情報_3_JP!$AE$11","v":0},null,null,null,null,null,null,{"$f":"商品情報_3_JP!$AL$11","v":"▼"}]
[null,null,null,null,null,null,null,null,null,null,null,null,null,null,null,null,null,null,null,null,null,null,null,null,null,null,null,"Height",null,null,{"$f":"商品情報_3_JP!$AE$12","v":0},null,null,null,null,null,null,{"$f":"商品情報_3_JP!$AL$12","v":"▼"}]
[null,null,null,null,null,null,null,null,null,null,null,null,null,null,null,null,null,null,null,null,null,null,null,null,null,null,null,"Weight",null,null,{"$f":"商品情報_3_JP!$AE$13","v":0},null,null,null,null,null,null,{"$f":"商品情報_3_JP!$AL$13","v":"▼"}]
[null,null,null,null,null,null,null,null,null,null,null,null,null,null,null,null,null,null,null,null,null,null,null,null,null,null,null,"Capacity",null,null,{"$f":"商品情報_3_JP!$AE$14","v":0},null,null,null,null,null,null,{"$f":"商品情報_3_JP!$AL$14","v":"▼"}]
[null,null,null,null,null,null,null,null,null,null,null,null,null,null,null,null,null,null,null,null,null,null,null,null,null,null,null,"Size per case"]
[null,null,null,null,null,null,null,null,null,null,null,null,null,null,null,null,null,null,null,null,null,null,null,null,null,null,null,"Width",null,null,{"$f":"商品情報_3_JP!$AE$16","v":0},null,null,null,null,null,null,{"$f":"商品情報_3_JP!$AL$16","v":"▼"}]
[null,null,null,null,null,null,null,null,null,null,null,null,null,null,null,null,null,null,null,null,null,null,null,null,null,null,null,"Depth",null,null,{"$f":"商品情報_3_JP!$AE$17","v":0},null,null,null,null,null,null,{"$f":"商品情報_3_JP!$AL$17","v":"▼"}]
[null,null,null,null,null,null,null,null,null,null,null,null,null,null,null,null,null,null,null,null,null,null,null,null,null,null,null,"Height",null,null,{"$f":"商品情報_3_JP!$AE$18","v":0},null,null,null,null,null,null,{"$f":"商品情報_3_JP!$AL$18","v":"▼"}]
[null,null,null,null,null,null,null,null,null,null,null,null,null,null,null,null,null,null,null,null,null,null,null,null,null,null,null,"Weight",null,null,{"$f":"商品情報_3_JP!$AE$19","v":0},null,null,null,null,null,null,{"$f":"商品情報_3_JP!$AL$19","v":"▼"}]
[null,null,null,null,null,null,null,null,null,null,null,null,null,null,null,null,null,null,null,null,null,null,null,null,null,null,null,"Quantity per case",null,null,{"$f":"商品情報_3_JP!$AE$20","v":0},null,null,null,null,null,null,{"$f":"IF(ISNA(VLOOKUP(商品情報_3_JP!AL20,ケース再追加,2,FALSE)),\"\",VLOOKUP(商品情報_3_JP!AL20,ケース再追加,2,FALSE))","v":""}]
[null,null,null,null,null,null,null,null,null,null,null,null,null,null,null,null,null,null,null,null,null,null,null,null,null,null,null,"Minimum lot for order"]
[null,null,null,null,null,null,null,null,null,null,null,null,null,null,null,null,null,null,null,null,null,null,null,null,null,null,null,{"$f":"商品情報_3_JP!$AB$22","v":0},null,null,null,null,null,null,null,null,null,{"$f":"IF(ISNA(VLOOKUP(商品情報_3_JP!AL22,ロット追加,2,FALSE)),\"\",VLOOKUP(商品情報_3_JP!AL22,ロット追加,2,FALSE))","v":""}]
[null,null,null,null,null,null,null,null,null,null,null,null,null,null,null,null,null,null,null,null,null,null,null,null,null,null,null,"Expiration date"]
[null,null,null,null,null,null,null,null,null,null,null,null,null,null,null,null,null,null,null,null,null,null,null,null,null,null,null,{"$f":"商品情報_3_JP!AH24","v":0},null,{"$f":"IF(ISNA(VLOOKUP(商品情報_3_JP!AK24,賞味期限_単位,2,FALSE)),\"\",VLOOKUP(商品情報_3_JP!AK24,賞味期限_単位,2,FALSE))","v":""},null,null,{"$f":"IF(ISNA(VLOOKUP(商品情報_3_JP!AF24,賞味期限_新,2,FALSE)),\"\",VLOOKUP(商品情報_3_JP!AF24,賞味期限_新,2,FALSE))","v":0}]
[null,null,null,null,null,null,null,null,null,null,null,null,null,null,null,null,null,null,null,null,null,null,null,null,null,null,null,"Place of production/processing"]
[null,null,null,null,null,null,null,null,null,null,null,null,null,null,null,null,null,null,null,null,null,null,null,null,null,null,null,{"$f":"商品情報_3_JP!$AI$26","v":0},null,null,null,null,null,null,null,null,null,null,null,{"$f":"商品情報_3_JP!AC26","v":0}]
[null,null,null,null,null,null,null,null,null,null,null,null,null,null,null,null,null,null,null,null,null,null,null,null,null,null,null,"Percentage of ingredients produced in Japan (weight-based)"]
[null,null,null,null,null,null,null,null,null,null,null,null,null,null,null,null,null,null,null,null,null,null,null,null,null,null,null,{"$f":"商品情報_3_JP!$AB$28","v":0},null,null,null,null,null,null,null,null,null,"%"]
[null,null,null,null,null,null,null,null,null,null,null,null,null,null,null,null,null,null,null,null,null,null,null,null,null,null,null,"Retail price in Japan (yen) *excluding tax"]
[null,null,null,null,null,null,null,null,null,null,null,null,null,null,null,null,null,null,null,null,null,null,null,null,null,null,null,{"$f":"商品情報_3_JP!$AB$30","v":0},null,null,null,null,null,null,null,null,null,"JPY"]
[null,null,null,null,null,null,null,null,null,null,null,null,null,null,null,null,null,null,null,null,null,null,null,null,null,null,null,"JAN code（EAN code）"]
[null,null,null,null,null,null,null,null,null,null,null,null,null,null,null,null,null,null,null,null,null,null,null,null,null,null,null,{"$f":"商品情報_3_JP!$AB$32","v":0}]
[null,null,null,null,null,null,null,null,null,null,null,null,null,null,null,null,null,null,null,null,null,null,null,null,null,null,null,"HS code"]
[null,null,null,null,null,null,null,null,null,null,null,null,null,null,null,null,null,null,null,null,null,null,null,null,null,null,null,{"$f":"商品情報_3_JP!$AB$34","v":0}]
["Ingredients & additives "]
[{"$f":"商品情報_3_JP!$A$41","v":0},null,null,null,null,null,null,null,null,null,null,null,null,null,null,null,null,null,null,null,null,null,null,null,null,null,null,null,null,null,null,null,null,null,null,null,null,null,null,{"$f":"商品情報_3_JP!A38","v":0}]
[]
[]
[]
[]
["Comments on product features, recipes using the product, awards,popularity at overseas food fairs and in importing countries."]
[{"$f":"商品情報_3_JP!$A$48","v":0},null,null,null,null,null,null,null,null,null,null,null,null,null,null,null,null,null,null,null,null,null,null,null,null,null,null,null,null,null,null,null,null,null,null,null,null,null,null,{"$f":"商品情報_3_JP!A45","v":0}]
[]
[]
[]
[]
["Certifications of the product"]
[{"$f":"商品情報_3_JP!$AO$52","v":false},{"$f":"IF(A47,\"●\",\"\")","v":""},"Organic",null,null,null,null,null,{"$f":"商品情報_3_JP!$AP$52","v":false},{"$f":"IF(I47,\"●\",\"\")","v":""},"Non-GMO Project",null,null,null,null,null,{"$f":"商品情報_3_JP!$AQ$52","v":false},{"$f":"IF(Q47,\"●\",\"\")","v":""},"GFCO",null,null,null,null,null,{"$f":"商品情報_3_JP!$AR$52","v":false},{"$f":"IF(Y47,\"●\",\"\")","v":""},"GFCP",null,null,null,null,null,{"$f":"商品情報_3_JP!$AS$52","v":false},{"$f":"IF(AG47,\"●\",\"\")","v":""},"MSC"]
[{"$f":"商品情報_3_JP!$AO$53","v":false},{"$f":"IF(A48,\"●\",\"\")","v":""},"ASC",null,null,null,null,null,{"$f":"商品情報_3_JP!$AP$53","v":false},{"$f":"IF(I48,\"●\",\"\")","v":""},"MEL",null,null,null,null,null,{"$f":"商品情報_3_JP!$AQ$53","v":false},{"$f":"IF(Q48,\"●\",\"\")","v":""},"AEL",null,null,null,null,null,{"$f":"商品情報_3_JP!$AR$53","v":false},{"$f":"IF(Y48,\"●\",\"\")","v":""},"Halal",null,null,null,null,null,{"$f":"商品情報_3_JP!$AS$53","v":false},{"$f":"IF(AG48,\"●\",\"\")","v":""},"Other"]
["If you have chosen \"Other\", please specify."]
[{"$f":"商品情報_3_JP!$Z$54","v":0},null,null,null,null,null,null,null,null,null,null,null,null,null,null,null,null,null,null,null,null,null,null,null,null,null,null,null,null,null,null,null,null,null,null,null,null,null,null,{"$f":"商品情報_3_JP!K54","v":0}]
[]
["Major customers"]
[{"$f":"商品情報_3_JP!$AO$56","v":false},{"$f":"IF(A53,\"●\",\"\")","v":""},"Professional use",null,null,null,null,null,null,null,null,{"$f":"商品情報_3_JP!$AP$56","v":false},{"$f":"IF(L53,\"●\",\"\")","v":""},"Hotels",null,null,null,null,null,null,null,null,{"$f":"商品情報_3_JP!$AQ$56","v":false},{"$f":"IF(W53,\"●\",\"\")","v":""},"Restaurants",null,null,null,null,null,null,{"$f":"商品情報_3_JP!$AR$56","v":false},{"$f":"IF(AF53,\"●\",\"\")","v":""},"Food manufacturers"]
[{"$f":"商品情報_3_JP!$AO$57","v":false},{"$f":"IF(A54,\"●\",\"\")","v":""},"Household use",null,null,null,null,null,null,null,null,{"$f":"商品情報_3_JP!$AP$57","v":false},{"$f":"IF(L54,\"●\",\"\")","v":""},"Direct sales",null,null,null,{"$f":"商品情報_3_JP!$AQ$57","v":false},{"$f":"IF(R54,\"●\",\"\")","v":""},"Wholesale",null,null,null,{"$f":"商品情報_3_JP!$AR$57","v":false},{"$f":"IF(X54,\"●\",\"\")","v":""},"Department stores",null,null,null,{"$f":"商品情報_3_JP!$AS$57","v":false},{"$f":"IF(AD54,\"●\",\"\")","v":""},"Super-markets",null,null,{"$f":"商品情報_3_JP!$AT$57","v":false},{"$f":"IF(AI54,\"●\",\"\")","v":""},"Food shops"]
[]
["Business target: Age group"]
[]
[{"$f":"商品情報_3_JP!$AO$63","v":false},{"$f":"IF(A58,\"●\",\"\")","v":""},"Infants/\nChildren",null,null,null,null,{"$f":"商品情報_3_JP!$AP$63","v":false},{"$f":"IF(H58,\"●\",\"\")","v":""},"Late 10s-20s",null,null,null,null,null,null,{"$f":"商品情報_3_JP!$AQ$63","v":false},{"$f":"IF(Q58,\"●\",\"\")","v":""},"30s-40s",null,null,null,null,null,{"$f":"商品情報_3_JP!$AR$63","v":false},{"$f":"IF(Y58,\"●\",\"\")","v":""},"50s and over",null,null,null,null,{"$f":"商品情報_3_JP!$AS$63","v":false},{"$f":"IF(AF58,\"●\",\"\")","v":""},"All ages"]
["Business target: Income group"]
[{"$f":"商品情報_3_JP!AO61","v":false},{"$f":"IF(A60,\"●\",\"\")","v":""},"Upper class",null,null,null,null,null,null,null,null,null,null,{"$f":"商品情報_3_JP!AP61","v":false},{"$f":"IF(N60,\"●\",\"\")","v":""},"Middle class",null,null,null,null,null,null,null,null,null,null,{"$f":"商品情報_3_JP!AQ61","v":false},{"$f":"IF(AA60,\"●\",\"\")","v":""},"Mass market"]
["Business target: Gender"]
[{"$f":"IF(ISNA(VLOOKUP(商品情報_3_JP!$X$61,性別,2,FALSE)),\"\",VLOOKUP(商品情報_3_JP!$X$61,性別,2,FALSE))","v":""}]
["Storage condition"]
[{"$f":"商品情報_3_JP!$AO$66","v":false},{"$f":"IF(A64,\"●\",\"\")","v":""},"Store at room temperature, away from heat and humidity.",null,null,null,null,null,null,null,null,null,{"$f":"商品情報_3_JP!$AP$66","v":false},{"$f":"IF(M64,\"●\",\"\")","v":""},"Store at room temperature, away from direct sunlight.",null,null,null,null,null,null,null,null,null,null,null,null,{"$f":"商品情報_3_JP!$AQ$66","v":false},{"$f":"IF(AB64,\"●\",\"\")","v":""},"Store in cool, dark place away from direct sunlight or heat."]
[{"$f":"商品情報_3_JP!$AO$67","v":false},{"$f":"IF(A65,\"●\",\"\")","v":""},"Store in dry place.",null,null,null,null,null,null,null,null,null,{"$f":"商品情報_3_JP!$AP$67","v":false},{"$f":"IF(M65,\"●\",\"\")","v":""},"Store at the following temperature.",null,null,null,null,null,null,null,null,null,null,null,null,{"$f":"商品情報_3_JP!$T$67","v":0},null,null,null,null,null,null,null,null,null,null,"℃"]
[{"$f":"商品情報_3_JP!$AO$68","v":false},{"$f":"IF(A66,\"●\",\"\")","v":""},"Other (please specify)",null,null,null,null,null,null,null,null,null,null,null,null,null,null,null,null,null,null,null,null,null,null,null,null,null,null,null,null,null,null,null,null,null,null,null,null,{"$f":"商品情報_3_JP!G68","v":0}]
[]
["Sales season",null,null,null,null,null,null,null,null,null,null,null,null,null,null,null,null,null,"（month)",null,null,null,null,null,null,null,"Labeling in foreign languages for shipment"]
[{"$f":"商品情報_3_JP!$AO$71","v":false},{"$f":"IF(A69,\"●\",\"\")","v":""},"We can make shipments during all seasons.",null,null,null,null,null,null,{"$f":"商品情報_3_JP!$AP$71","v":false},{"$f":"IF(J69,\"●\",\"\")","v":""},"We can make shipments during the following term.",null,null,null,null,null,null,{"$f":"商品情報_3_JP!$P$71","v":0},null,null,"~",{"$f":"商品情報_3_JP!$U$71","v":0},null,null,null,{"$f":"IF(ISNA(VLOOKUP(商品情報_3_JP!AA71,ラベル,2,FALSE)),\"\",VLOOKUP(商品情報_3_JP!AA71,ラベル,2,FALSE))","v":0}]
[null,null,null,null,null,null,null,null,null,null,null,null,null,null,null,null,null,null,null,null,null,null,null,null,null,null,"OEM"]
[null,null,null,null,null,null,null,null,null,null,null,null,null,null,null,null,null,null,null,null,null,null,null,null,null,null,{"$f":"IF(ISNA(VLOOKUP(商品情報_3_JP!AH71,OEM,2,FALSE)),\"\",VLOOKUP(商品情報_3_JP!AH71,OEM,2,FALSE))","v":0}]
[]
["Recipes/ways to prepare or consume the product/messages/request to buyers"]
[{"$f":"商品情報_3_JP!$A$78","v":0},null,null,null,null,null,null,null,null,null,null,null,null,null,null,null,null,null,null,null,null,null,null,null,null,null,null,null,null,null,null,null,null,null,null,null,null,null,null,{"$f":"商品情報_3_JP!A75","v":0}]

{"sheet":"データ(保護有り 削除不可）","index":9,"n_rows":55,"n_cols":66,"rows_kept":55,"cut":false,"hidden":true,"merged":[]}
["品種・品目","英語","繁体字","簡体字","韓国語","ポルトガル語","仏語","長さ","重量","賞味期限_新","英語","簡体字","韓国語","ポルトガル語","仏語","賞味期限_単位","英語","繁体字","簡体字","韓国語","ポルトガル語","仏語","ケース","英語","繁体字","簡体字","韓国語","ポルトガル語","仏語","ロット","英語","繁体字","簡体字","韓国語","ポルトガル語","仏語","ラベル","英語","簡体字","韓国語","ポルトガル語","仏語","OEM","英語","性別","英語","繁体字","簡体字","韓国語","ポルトガル語","仏語","内容量","品質保持期限","英語","繁体字","簡体字","韓国語","ポルトガル語","仏語",null,"輸出体制（現Verでは不要）","英語","簡体字","韓国語","ポルトガル語","仏語"]
["▼クリックしてプルダウンよりお選びください",null,null,null,null,null,"Cliquer et choisir dans la liste déroulante","▼","▼","▼",null,null,null,null,null,"▼",null,null,null,null,null,null,"▼",null,null,null,null,null,null,"▼",null,null,null,null,null,null,"▼プルダウン",null,"请在下拉菜单中选择","풀다운으로부터 선택하십시오","Selecione pelo menu suspenso","Choisir dans la liste déroulante","▼プルダウン",null,"プルダウンよりお選びください",null,null,null,null,null,null,"▼","▼","▼",null,null,null,null,null,null,"プルダウンよりお選びください"]
["肉・肉を用いた加工品","Raw and processed meat","肉/肉類的加工品","肉/肉类加工品","육류, 육류를 이용한 가공품","Carnes/ produtos processados com carne","Viande/produits transformés contenant de la viande","cm","mg","常温","Normal","常温","상온","Temperatura normal","Température ambiante","日","days","天","日","일","dia(s)","jour","本","bottle","本","条","개","Unidade","Bouteille","個",null,null,null,null,null,null,"可","We can label","可应对","대응 가능","Possível","Possible","可","We can","男性","Male","男人","男","남자","Masculino","Hommes","ml","賞味期限","best before",null,null,null,null,null,1,"専任の輸出担当者を設置している","Have full-time staff in charge of export","设置专门的出口负责人","전임수출담당자를 지정하고 있음","Há encarregado de exportação a tempo integral","Personnel en charge de l'export à plein-temps"]
["酪農製品・鳥卵・鳥卵加工品","Dairy products/raw and processed eggs","酪農產品/雞蛋/雞蛋加工品","乳制品/禽蛋/禽蛋加工品","유제품, 달걀류가공품","Laticínios/ ovos de aves/ ovos processados ","Produits laitiers/œufs/produits transformés à base d'œufs","mm","g","冷蔵","Cold","冷藏","냉장","Refrigeração","Réfrigération","カ月","month","月","月","개월","mês(es)","mois","箱","box","箱","箱","상자","Caixa","Caisse","本","bottle","本","条","개","Unidade","Bouteille","不可","We cannot label","不可应对","대응 불가능","Não é possível","Impossible","不可","We cannot","女性","Female","女人","女","여자","Feminino","Femmes","l","消費期限","use by date",null,null,null,null,null,2,"専任ではないが担当者を設置している","Have part-time staff in charge of export","设置非专门的负责人","전임은 아니지만 담당자를 지정하고 있음","Há encarregado de exportação, mas não em tempo integral","Personnel en charge de l'import à temps partiel"]
["魚介類・魚介類加工品","Raw and processed seafood","魚貝類/魚貝類加工品","鱼贝类/鱼贝类加工品","어패류, 어패류 가공품","Peixes e frutos do mar/ peixes e frutos do mar processados ","Poissons et fruits de mer/produits transformés à base de poissons et fruits de mer",null,"kg","冷凍","Frozen","冷冻","냉동","Congelação","Congélation","年","year","年","年","년","ano(s)","année","包","pack","包","包","포","Invólucro","Paquet","箱","box","箱","箱","상자","Caixa","Caisse",null,null,null,null,null,null,null,null,"男女両方","Both Male and Female","男人女人都","男女皆可","남녀 모두","Masc. e fem.","Hommes et femmes","g",null,null,null,null,null,null,null,3,"今後担当者を設置する予定","Planning to have staff in charge of export","预计在今后设置负责人","앞으로 담당자를 지정할 예정","Previsão de colocar encarregado futuramente","Prévoit d'employer du personnel en charge de l'export "]
["穀類・穀類等加工品","Raw and processed grains","穀類/穀類加工品","粮食/粮食加工品","곡류, 곡류 등 가공품","Grãos/ grãos processados","Céréales/produits transformés à base de céréales",null,null,null,null,null,null,null,null,null,null,null,null,null,null,null,"ケース","case","盒","盒","케이스","Caixa","Étui","包","pack","包","包","포","Invólucro","Paquet",null,null,null,null,null,null,null,null,null,null,null,null,null,null,null,"kg",null,null,null,null,null,null,null,4,"今のところ設置する予定はない","No plan to have staff in charge of export","现暂无设置计划","현재 지정할 예정 없음","Sem previsão de colocar encarregado no momento","Ne prévoit pas d'employer du personnel en charge de l'export"]
["米・米加工品","Raw and processed rice","米/米加工品","大米/大米加工品","쌀, 쌀 가공품","Arroz/ arroz processado","Riz/produits transformés à base de riz",null,null,null,null,null,null,null,null,null,null,null,null,null,null,null,"パック","pack","包","包","포","Invólucro","Paquet","ケース","case","盒","盒","케이스","Caixa ","Étui"]
["野菜・果実・野菜・果実加工品","Raw and processed vegetables/fruit","蔬菜‧水果/蔬菜水果加工品","蔬菜・水果/蔬菜・水果加工品","채소, 과일, 채소・과일 가공품","Hortaliças, frutas/ produtos hortofrutícolas processados","Fruits et légumes/produits transformés à base de fruits et légumes",null,null,null,null,null,null,null,null,null,null,null,null,null,null,null,"ピース","piece(s)","塊/片/條","块/片/条","개","Unidade","pièce(s)","カートン","carton","紙盒","纸盒","카톤","Caixa de papelão","Carton"]
["糖類・糖類加工品・はちみつ","Sweetener and processed/honey","糖類/糖類加工品/蜂蜜","糖类/糖类加工品/蜂蜜","당류, 당류 가공품, 꿀","Açúcar/ açúcar processado/ mel","Sucre/produits transformés à base de sucre/miel",null,null,null,null,null,null,null,null,null,null,null,null,null,null,null,"個","piece(s)","塊/片/條","块/片/条","개","Unidade","pièce(s)","コンテナ","container","集裝箱","集装箱","컨테이너","recipiente","Container"]
["コーヒー・ココア・香辛料類","Coffe/cocoa/spices","咖啡/可可亞/香辛料類","咖啡/可可/香辛料类","커피, 코코아, 향신료류","Café/ cacau/ especiarias","Café/cacao/épices",null,null,null,null,null,null,null,null,null,null,null,null,null,null,null,null,null,null,null,null,null,null,"個","piece(s)","塊/片/條","块/片/条","개","Unidade","pièce(s)"]
["茶葉","Tea","茶葉","茶叶","찻잎","Folhas de chá","Feuilles de thé"]
["調味料","Seasoning","調味料","调味料","조미료","Temperos","Condiments"]
["動・植物性油脂","Animal oil and fat/Vegetable oil","動,植物油","动,植物油","동물성 유지/식물성 유지","Animal e óleo vegetal","Huiles animales et végétales"]
["清酒","Sake","日本清酒","清酒","청주","Sakê refinado","Saké"]
["焼酎","Shochu","燒酒","烧酒","소주","Bebidas alcoólicas destiladas","Shochu"]
["その他のアルコール飲料","Other alcoholic beverages","其他含酒精的飲料","其他酒精饮料","그 외 알코올음료","Outras bebidas alcoólicas","Autres boissons alcoolisées"]
["非アルコール飲料","Non-alcoholic beverages","不含酒精飲料","非酒精饮料","비 알코올음료","Bebidas não alcoólicas","Boissons non alcoolisées"]
["その他の加工品","Other products","其他的加工品","其他加工产品","그 외 가공품","Outros produtos processados","Autres produits transformés"]
[]
[]
["特大カテゴ","▼プルダウンより選択","生鮮品","加工食品"]
["大カテゴリ","▼プルダウンより選択","精肉","酒類"]
[null,null,"魚介類","飲料"]
[null,null,"野菜・フルーツ","米・雑穀・麺類"]
[null,null,null,"パン・シリアル・ジャム・はちみつ類"]
[null,null,null,"肉"]
[null,null,null,"魚介類加工品"]
[null,null,null,"冷蔵食品"]
[null,null,null,"レトルト食品"]
[null,null,null,"缶詰・瓶詰・粉類・乾物"]
[null,null,null,"製菓・製パン材料"]
[null,null,null,"調味料・食用油・ドレッシング・スパイス"]
[null,null,null,"菓子類"]
[null,null,null,"健康食品"]
[null,null,null,"ベビー・マタニティ食品"]
[]
[]
[]
["特大カテゴ","▼プルダウンより選択","生鮮品",null,null,"加工食品"]
["大カテゴリ","▼プルダウンより選択","精肉","魚介類","野菜・フルーツ","酒類","飲料","米・雑穀・麺類","パン・シリアル・ジャム・はちみつ類","肉","魚介類加工品","冷蔵食品","レトルト食品","缶詰・瓶詰・粉類・乾物","製菓・製パン材料","調味料・食用油・ドレッシング・スパイス","菓子類","健康食品","ベビー・マタニティ食品"]
["中カテゴリ","▼プルダウンより選択","肉","魚","野菜","日本酒","水・ミネラルウォーター","米","パン","肉加工品","水産加工品","たまご","惣菜類","缶詰・瓶詰","粉類","調味料","スイーツ・スナック菓子","食品","ベビーフード"]
[null,null,null,"貝・海藻類","フルーツ","ビール・発泡酒","お茶飲料","麦・はと麦・押麦","タコシェル・トルティーヤ",null,null,"乳製品","ごはん","粉類","その他","ドレッシング","アイスクリーム類","飲料","ベビー飲料"]
[null,null,null,null,null,"ワイン","ソフトドリンク","雑穀・古代米","クルトン",null,null,"ヨーグルト","スープ・味噌汁","乾物",null,"食用油",null,null,"マタニティフード"]
[null,null,null,null,null,"焼酎","茶葉・粉末ドリンク","麺類","シリアル",null,null,"豆腐・納豆・大豆製品",null,"ふりかけ・お茶漬け",null,"香辛料・スパイス",null,null,null,null,null,null,null,null,null,null,null,null,null,null,null,null,null,""]
[null,null,null,null,null,"梅酒・果実酒",null,null,"ジャム・はちみつ",null,null,"佃煮・漬物",null,null,null,"料理の素・たれ"]
[null,null,null,null,null,"洋酒・リキュール",null,null,null,null,null,"その他"]
[null,null,null,null,null,"チューハイ・カクテル",null,null,null,null,null,"米"]
[null,null,null,null,null,null,null,null,null,null,null,"麺類・パスタ・パン等"]
[null,null,null,null,null,null,null,null,null,null,null,"お惣菜等"]
[null,null,null,null,null,null,null,null,null,null,null,"肉"]
[null,null,null,null,null,null,null,null,null,null,null,"肉加工品"]
[null,null,null,null,null,null,null,null,null,null,null,"魚介類"]
[null,null,null,null,null,null,null,null,null,null,null,"水産加工品"]
[null,null,null,null,null,null,null,null,null,null,null,"野菜・フルーツ"]
[null,null,null,null,null,null,null,null,null,null,null,"氷類"]